Workbook

Sheet AGOSTO (2)
B1: LISTADO CONTRATACION MES DE AGOSTO 2020
A2: NO | B2: CEDULA | C2: NOMBRES APELLIDOS CONTRATISTA | D2: ops #año | E2: OBJETO DEL CONTRATO | F2: FECHA INICIO | G2: FECHA TERMINACION | H2: VALOR MENSUAL | I2: VALOR TOTAL | J2: CDP | K2: RP | L2: SUPERVISOR | M2: FECHA SECOP | N2: LINK SECOP
A3: 1 | B3: 1129532724 | C3: MICHELLY SANDOVAL ACUÑA | D3: 3144-2020-COVID19 | E3: AUDITOR MEDICO - EPIDEMIOLOGA COORDINACION- EMERGENCIA COVID19 | F3: 03 de agosto de 2020 | G3: 31 de Agosto de 2020 | H3: 6044000 | I3: =+H3*1 -> 6044000 | J3: 3968 | K3: 4969 | L3: BETTY PERTUZ | M3: 2020-08-15 | N3: https://www.contratos.gov.co/consultas/detalleProceso.do?numConstancia=20-4-11019962
A4: =+A3+1 -> 2 | B4: 32870174 | C4: SIRLEY PAOLA PEREZ CARMONA | D4: 3145-2020 | E4: AUDITOR DE CALIDAD Y SERVICIOS DE SALUD | F4: 03 de agosto de 2020 | G4: 31 de Agosto de 2020 | H4: 5800000 | I4: 5800000 | J4: 3969 | K4: 4970 | L4: BETTY PERTUZ | M4: 2020-08-15 | N4: https://www.contratos.gov.co/consultas/detalleProceso.do?numConstancia=20-4-11019967
A5: =+A4+1 -> 3 | B5: 1140846298 | C5: LENIN ALVAREZ PINEDA | D5: 3146-2020 | E5: AUDITOR DE SISTEMAS Y RESOLUCION 4505 | F5: 03 de agosto de 2020 | G5: 31 de Agosto de 2020 | H5: 3000000 | I5: 3000000 | J5: 3970 | K5: 4971 | L5: NILSA ARIZA MARQUEZ | M5: 2020-08-15 | N5: https://www.contratos.gov.co/consultas/detalleProceso.do?numConstancia=20-4-11019985
A6: 4 | B6: 22736159 | C6: ARACELLY HERNANDEZ GARCIA | D6: 3147-2020 | E6: AUXILIAR ADMINISTRATIVO TIC Y SISTEMA DE INFORMACION | F6: 03 de agosto de 2020 | G6: 31 de Agosto de 2020 | H6: 2500000 | I6: 2500000 | J6: 3971 | K6: 4972 | L6: ZULLY ROMERO | M6: 2020-08-15 | N6: https://www.contratos.gov.co/consultas/detalleProceso.do?numConstancia=20-4-11019993
A7: 5 | B7: 1042416953 | C7: GABRIEL JOSE MONTIEL CERVANTES | D7: 3148-2020 | E7: INGENIERO DE REDES Y HARDWARE | F7: 03 de agosto de 2020 | G7: 31 de Agosto de 2020 | H7: 3000000 | I7: 3000000 | J7: 3972 | K7: 4973 | L7: ZULLY ROMERO | M7: 2020-08-15 | N7: https://www.contratos.gov.co/consultas/detalleProceso.do?numConstancia=20-4-11020096
A8: 6 | B8: 1043121395 | C8: SHEYLA DEL CARMEN ESTRADA ARIZA | D8: 3149-2020 | E8: TECNICO DE SISTEMAS | F8: 03 de agosto de 2020 | G8: 31 de Agosto de 2020 | H8: 1270000 | I8: 1270000 | J8: 3973 | K8: 4974 | L8: ZULLY ROMERO | M8: 2020-08-15 | N8: https://www.contratos.gov.co/consultas/detalleProceso.do?numConstancia=20-4-11020141
A9: 7 | B9: 8762035 | C9: CESAR AUGUSTO MERIÑO ESCORCIA | D9: 3150-2020 | E9: ORIENTADOR | F9: 03 de agosto de 2020 | G9: 31 de Agosto de 2020 | H9: 1270000 | I9: 1270000 | J9: 3974 | K9: 4975 | L9: SANDRA SANMARTIN | M9: 2020-08-15 | N9: https://www.contratos.gov.co/consultas/detalleProceso.do?numConstancia=20-4-11020149
A10: 8 | B10: 1140814033 | C10: STEFANY RINCON TORRES | D10: 3151-2020-COVID19 | E10: PROFESIONAL COORD EQUIPO TOMA DE MUESTRAS COVID19 DEL HMI | F10: 03 de agosto de 2020 | G10: 31 de Agosto de 2020 | H10: 4000000 | I10: 4000000 | J10: 3975 | K10: 4976 | L10: BETTY PERTUZ | M10: 2020-08-15 | N10: https://www.contratos.gov.co/consultas/detalleProceso.do?numConstancia=20-4-11020152
A11: 9 | B11: 1140874429 | C11: ALBERTO DE LA OSSA DE AVILA | D11: 3152-2020 | E11: PROFESIONAL PRESUPUESTO | F11: 03 de agosto de 2020 | G11: 31 de Agosto de 2020 | H11: 3000000 | I11: 3000000 | J11: 3976 | K11: 4977 | L11: JORGE OLMOS NAVARRO | M11: 2020-08-15 | N11: https://www.contratos.gov.co/consultas/detalleProceso.do?numConstancia=20-4-11020156
A12: 10 | B12: 22549719 | C12: CARMEN MELINA BOLAÑO COTES | D12: 3153-2020 | E12: AUXILIAR ADMINISTRATIVO ESTADISTICA | F12: 03 de agosto de 2020 | G12: 31 de Agosto de 2020 | H12: 2500000 | I12: 2500000 | J12: 3977 | K12: 4978 | L12: GENARO GUTIERREZ DE PIÑERES | M12: 2020-08-15 | N12: https://www.contratos.gov.co/consultas/detalleProceso.do?numConstancia=20-4-11020249
A13: 11 | B13: 1001798325 | C13: CINDY MILENA SARMIENTO MERIÑO | D13: 3154-2020 | E13: ESPECIALISTA TALENTO HUMANO | F13: 03 de agosto de 2020 | G13: 31 de Agosto de 2020 | H13: 5000000 | I13: 5000000 | J13: 3978 | K13: 4979 | L13: FABIAN COLPAS OROZCO | M13: 2020-08-15 | N13: https://www.contratos.gov.co/consultas/detalleProceso.do?numConstancia=20-4-11020255
A14: 12 | B14: 32769708 | C14: CLAUDIA ARENAS ALVAREZ | D14: 3155-2020 | E14: PROFESIONAL DE APOYO A LA OFICINA DE CONTROL INTERNO | F14: 03 de agosto de 2020 | G14: 31 de Agosto de 2020 | H14: 3500000 | I14: 3500000 | J14: 3979 | K14: 4980 | L14: SANDRA SANMARTIN | M14: 2020-08-15 | N14: https://www.contratos.gov.co/consultas/detalleProceso.do?numConstancia=20-4-11020257
A15: 13 | B15: 1043611198 | C15: CRISTIAN JESUS RODRIGUEZ QUIROZ | D15: 3156-2020 | E15: PROFESIONAL DE APOYO A LA OFICINA DE CONTROL INTERNO | F15: 03 de agosto de 2020 | G15: 31 de Agosto de 2020 | H15: 3000000 | I15: 3000000 | J15: 3980 | K15: 4981 | L15: SANDRA SANMARTIN | M15: 2020-08-15 | N15: https://www.contratos.gov.co/consultas/detalleProceso.do?numConstancia=20-4-11020275
A16: 14 | B16: 22704983 | C16: EGUIS ODILA ROLONG LAGUNA | D16: 3157-2020 | E16: ABOGADO TALENTO HUMANO | F16: 03 de agosto de 2020 | G16: 31 de Agosto de 2020 | H16: 5000000 | I16: 5000000 | J16: 3981 | K16: 4982 | L16: FABIAN COLPAS OROZCO | M16: 2020-08-15 | N16: https://www.contratos.gov.co/consultas/detalleProceso.do?numConstancia=20-4-11020276
A17: 15 | B17: 32866006 | C17: ERIKA MARIA ASCENCIO MARQUEZ | D17: 3158-2020 | E17: PROFESIONAL CONTRATACION Y SISTEMAS DE INFORMACION TALENTO HUMANO | F17: 03 de agosto de 2020 | G17: 31 de Agosto de 2020 | H17: 4000000 | I17: 4000000 | J17: 3982 | K17: 4983 | L17: FABIAN COLPAS OROZCO | M17: 2020-08-15 | N17: https://www.contratos.gov.co/consultas/detalleProceso.do?numConstancia=20-4-11020279
A18: 16 | B18: 8495176 | C18: JAIME ALBERTO ALVAREZ NORIEGA | D18: 3159-2020 | E18: INGENIERO AMBIENTAL | F18: 03 de agosto de 2020 | G18: 31 de Agosto de 2020 | H18: 3500000 | I18: 3500000 | J18: 3983 | K18: 4984 | L18: SANDRA SANMARTIN | M18: 2020-08-15 | N18: https://www.contratos.gov.co/consultas/detalleProceso.do?numConstancia=20-4-11020282
A19: 17 | B19: 72053529 | C19: LEINER DARIO MEDINA HERRERA | D19: 3160-2020 | E19: PROFESIONAL DE APOYO A LA OFICINA TALENTO HUMANO | F19: 03 de agosto de 2020 | G19: 31 de Agosto de 2020 | H19: 3000000 | I19: 3000000 | J19: 3984 | K19: 4985 | L19: FABIAN COLPAS OROZCO | M19: 2020-08-15 | N19: https://www.contratos.gov.co/consultas/detalleProceso.do?numConstancia=20-4-11020288
A20: 18 | B20: 8571868 | C20: ERINSON RAFAEL GUZMAN DE LA HOZ | D20: 3161-2020 | E20: PROFESIONAL DE APOYO CONTRATACION TALENTO HUMANO | F20: 03 de agosto de 2020 | G20: 31 de Agosto de 2020 | H20: 3000000 | I20: 3000000 | J20: 3985 | K20: 4986 | L20: FABIAN COLPAS OROZCO | M20: 2020-08-15 | N20: https://www.contratos.gov.co/consultas/detalleProceso.do?numConstancia=20-4-11020296
A21: 19 | B21: 44205287 | C21: MARTHA KATERINE MEJIA FRUTO | D21: 3162-2020 | E21: AUXILIAR ADMINISTRATIVO RECEPCION | F21: 03 de agosto de 2020 | G21: 31 de Agosto de 2020 | H21: 1900000 | I21: 1900000 | J21: 3986 | K21: 4987 | L21: SANDRA SANMARTIN | M21: 2020-08-15 | N21: https://www.contratos.gov.co/consultas/detalleProceso.do?numConstancia=20-4-11020299
A22: 20 | B22: 1043876764 | C22: MELANI ISABEL PERTUZ HERRERA | D22: 3163-2020 | E22: AUXILIAR ADMINISTRATIVO - SUBGERENCIA ADMINISTRATIVA | F22: 03 de agosto de 2020 | G22: 31 de Agosto de 2020 | H22: 2200000 | I22: 2200000 | J22: 3987 | K22: 4988 | L22: SANDRA SANMARTIN | M22: 2020-08-15 | N22: https://www.contratos.gov.co/consultas/detalleProceso.do?numConstancia=20-4-11020301
A23: 21 | B23: 72268005 | C23: MILTON SOLARTE RODRIGUEZ | D23: 3164-2020 | E23: APOYO EN ANALISIS Y DESARROLLO DE INFORMACION EN FACTURACION CENTRAL (RIPS) | F23: 03 de agosto de 2020 | G23: 31 de Agosto de 2020 | H23: 3000000 | I23: 3000000 | J23: 3988 | K23: 4989 | L23: SANDRA SANMARTIN | M23: 2020-08-15 | N23: https://www.contratos.gov.co/consultas/detalleProceso.do?numConstancia=20-4-11020301
A24: 22 | B24: 55239101 | C24: NATALI ANDREA NIEBLES JURADO | D24: 3165-2020 | E24: AUDITOR DE CALIDAD (LIDER DE UNIDAD) | F24: 03 de agosto de 2020 | G24: 31 de Agosto de 2020 | H24: 5800000 | I24: 5800000 | J24: 3989 | K24: 4990 | L24: BETTY PERTUZ | M24: 2020-08-15 | N24: https://www.contratos.gov.co/consultas/detalleProceso.do?numConstancia=20-4-11020307
A25: 23 | B25: 1010179685 | C25: NAYIVI OSPINA ARROYAVE | D25: 3166-2020 | E25: PROFESIONAL SISTEMA DE GESTION Y SEGURIDAD EN EL TRABAJO | F25: 03 de agosto de 2020 | G25: 31 de Agosto de 2020 | H25: 3500000 | I25: 3500000 | J25: 3990 | K25: 4991 | L25: FABIAN COLPAS OROZCO | M25: 2020-08-15 | N25: https://www.contratos.gov.co/consultas/detalleProceso.do?numConstancia=20-4-11020313
A26: 24 | B26: 8603175 | C26: NILSON ORTEGA JIMENEZ | D26: 3167-2020 | E26: AUXILIAR ADMINISTRATIVO TALENTO HUMANO | F26: 03 de agosto de 2020 | G26: 31 de Agosto de 2020 | H26: 2000000 | I26: 2000000 | J26: 3991 | K26: 4992 | L26: FABIAN COLPAS OROZCO | M26: 2020-08-15 | N26: https://www.contratos.gov.co/consultas/detalleProceso.do?numConstancia=20-4-11020315
A27: 25 | B27: 1047340446 | C27: OSCAR MAURICIO MARENCO ROMERO | D27: 3168-2020 | E27: ASISTENTE ADMINISTRATIVO | F27: 03 de agosto de 2020 | G27: 31 de Agosto de 2020 | H27: 1800000 | I27: 1800000 | J27: 3992 | K27: 4993 | L27: BETTY PERTUZ | M27: 2020-08-15 | N27: https://www.contratos.gov.co/consultas/detalleProceso.do?numConstancia=20-4-11020317
A28: 26 | B28: 22446590 | C28: ROSALBA CERPA MIRANDA | D28: 3169-2020 | E28: AUXILIAR ADMINISTRATIVO - SUBGERENCIA CIENTIFICA | F28: 03 de agosto de 2020 | G28: 31 de Agosto de 2020 | H28: 1900000 | I28: 1900000 | J28: 3993 | K28: 4994 | L28: BETTY PERTUZ | M28: 2020-08-15 | N28: https://www.contratos.gov.co/consultas/detalleProceso.do?numConstancia=20-4-11020324
A29: 27 | B29: 1140818354 | C29: SAEN DAVID TAJAN NIEBLES | D29: 3170-2020 | E29: AUXILIAR ADMINISTRATIVO DE SISTEMAS DE INFORMACION EN PROMOCION Y PREVENCION | F29: 03 de agosto de 2020 | G29: 31 de Agosto de 2020 | H29: 2000000 | I29: 2000000 | J29: 3994 | K29: 4995 | L29: NILSA ARIZA MARQUEZ | M29: 2020-08-15 | N29: https://www.contratos.gov.co/consultas/detalleProceso.do?numConstancia=20-4-11020326
A30: 28 | B30: 57105527 | C30: ZOILA PATRICIA PABON HERNANDEZ | D30: 3171-2020 | E30: ASISTENTE COORDINACIÓN MÉDICA | F30: 03 de agosto de 2020 | G30: 31 de Agosto de 2020 | H30: 3000000 | I30: 3000000 | J30: 3995 | K30: 4996 | L30: BETTY PERTUZ | M30: 2020-08-15 | N30: https://www.contratos.gov.co/consultas/detalleProceso.do?numConstancia=20-4-11020334
A31: 29 | B31: 32825462 | C31: ANAIS DE JESUS RODRIGUEZ DE LAS AGUAS | D31: 3172-2020 | E31: PERSONAL LIMPIEZA Y ASEO | F31: 03 de agosto de 2020 | G31: 31 de Agosto de 2020 | H31: 1215000 | I31: 1215000 | J31: 3996 | K31: 4997 | L31: JAIME ALVAREZ NORIEGA | M31: 2020-08-15 | N31: https://www.contratos.gov.co/consultas/detalleProceso.do?numConstancia=20-4-11020335
A32: 30 | B32: 1041898122 | C32: MELIZA MORALES PALLARES | D32: 3173-2020 | E32: AUXILIAR ADMINISTRATIVO | F32: 03 de agosto de 2020 | G32: 31 de Agosto de 2020 | H32: 2000000 | I32: 2000000 | J32: 3997 | K32: 4998 | L32: SANDRA SANMARTIN | M32: 2020-08-15 | N32: https://www.contratos.gov.co/consultas/detalleProceso.do?numConstancia=20-4-11020337
A33: 31 | B33: 1042439853 | C33: KERVY DIYAN JINETTE BARRIOS | D33: 3174-2020 | E33: AUXILIAR ADMINISTRATIVO RESOLUCIÓN 2463 | F33: 03 de agosto de 2020 | G33: 31 de Agosto de 2020 | H33: 1900000 | I33: 1900000 | J33: 3998 | K33: 4999 | L33: BETTY PERTUZ | M33: 2020-08-15 | N33: https://www.contratos.gov.co/consultas/detalleProceso.do?numConstancia=20-4-11020339
A34: 32 | B34: 1045732710 | C34: VICTOR JOSE AGUILAR CRUZADO | D34: 3175-2020 | E34: AUXILIAR ADMINISTRATIVO- CONTRATACION BIENES Y SERVICIOS | F34: 03 de agosto de 2020 | G34: 31 de Agosto de 2020 | H34: 4000000 | I34: 4000000 | J34: 3999 | K34: 5000 | L34: ORNELLA FIORENTINO | M34: 2020-08-15 | N34: https://www.contratos.gov.co/consultas/detalleProceso.do?numConstancia=20-4-11020344
A35: 33 | B35: 8776312 | C35: JORGE RIVERA MEZA | D35: 3176-2020 | E35: AUXILIAR RECURSOS FISICOS | F35: 03 de agosto de 2020 | G35: 31 de Agosto de 2020 | H35: 1900000 | I35: =+H35*1 -> 1900000 | J35: 4000 | K35: 5001 | L35: SANDRA SANMARTIN | M35: 2020-08-15 | N35: https://www.contratos.gov.co/consultas/detalleProceso.do?numConstancia=20-4-11020348
A36: 34 | B36: 1042971531 | C36: JULIETH PAOLA FIGUEROA ZAMBRANO | D36: 3177-2020 | E36: AUXILIAR ADMINISTRATIVO CONTABLE | F36: 03 de agosto de 2020 | G36: 31 de Agosto de 2020 | H36: 2500000 | I36: 2500000 | J36: 4001 | K36: 5002 | L36: JORGE OLMOS NAVARRO | M36: 2020-08-15 | N36: https://www.contratos.gov.co/consultas/detalleProceso.do?numConstancia=20-4-11020350
A37: 35 | B37: 32607428 | C37: TEMILDA MARIA PERTUZ PEREZ | D37: 3178-2020 | E37: AUDITOR DE CALIDAD Y SERVICIOS DE SALUD | F37: 03 de agosto de 2020 | G37: 31 de Agosto de 2020 | H37: 4000000 | I37: 4000000 | J37: 4002 | K37: 5003 | L37: BETTY PERTUZ | M37: 2020-08-15 | N37: https://www.contratos.gov.co/consultas/detalleProceso.do?numConstancia=20-4-11020353
A38: 36 | B38: 1045721126 | C38: MARYURIS JOANNA GALVAN NAVARRO | D38: 3179-2020 | E38: LIDER LABORATORIO | F38: 03 de agosto de 2020 | G38: 31 de Agosto de 2020 | H38: 5000000 | I38: 5000000 | J38: 4003 | K38: 5004 | L38: BETTY PERTUZ | M38: 2020-08-15 | N38: https://www.contratos.gov.co/consultas/detalleProceso.do?numConstancia=20-4-11020354
A39: 37 | B39: 1140847982 | C39: LEIDY DANIELA WILSON PEZZOTI | D39: 3180-2020 | E39: AUXILIAR ADMINISTRATIVO VENTANILLA UNICA | F39: 03 de agosto de 2020 | G39: 31 de Agosto de 2020 | H39: 2200000 | I39: 2200000 | J39: 4004 | K39: 5005 | L39: SANDRA SANMARTIN | M39: 2020-08-15 | N39: https://www.contratos.gov.co/consultas/detalleProceso.do?numConstancia=20-4-11020355
A40: 38 | B40: 22804794 | C40: KATHERINE GUERRERO SEPULVEDA | D40: 3181-2020 | E40: ABOGADO EXTERNO | F40: 03 de agosto de 2020 | G40: 31 de Agosto de 2020 | H40: 5800000 | I40: 5800000 | J40: 4005 | K40: 5006 | L40: ORNELLA FIORENTINO | M40: 2020-08-15 | N40: https://www.contratos.gov.co/consultas/detalleProceso.do?numConstancia=20-4-11020357
A41: 39 | B41: 22504159 | C41: FLOR MILENA GOICOCHEA OROZCO | D41: 3182-2020 | E41: AUXILIAR FACTURACION CENTRAL | F41: 03 de agosto de 2020 | G41: 31 de Agosto de 2020 | H41: 2000000 | I41: 2000000 | J41: 4006 | K41: 5007 | L41: SANDRA SANMARTIN | M41: 2020-08-15 | N41: https://www.contratos.gov.co/consultas/detalleProceso.do?numConstancia=20-4-11020358
A42: 40 | B42: 72250386 | C42: RONALD EMIL PADILLA ACUÑA | D42: 3183-2020 | E42: ABOGADO | F42: 03 de agosto de 2020 | G42: 31 de Agosto de 2020 | H42: 5000000 | I42: 5000000 | J42: 4007 | K42: 5008 | L42: ORNELLA FIORENTINO | M42: 2020-08-15 | N42: https://www.contratos.gov.co/consultas/detalleProceso.do?numConstancia=20-4-11020360
A43: 41 | B43: 32848040 | C43: LEDIS MARIA MOLINA OQUENDO | D43: 3184-2020 | E43: ABOGADO CONTRATACION | F43: 03 de agosto de 2020 | G43: 31 de Agosto de 2020 | H43: 5000000 | I43: 5000000 | J43: 4008 | K43: 5009 | L43: ORNELLA FIORENTINO | M43: 2020-08-15 | N43: https://www.contratos.gov.co/consultas/detalleProceso.do?numConstancia=20-4-11020361
A44: 42 | B44: 1045166274 | C44: ALBA MARINA RODRIGUEZ YANCE | D44: 3185-2020-COVID19 | E44: ASESORA SALUD PUBLICA EN LA SUBGERENCIA CIENTIFICA - PROYECTO PIC DEPARTAMENTAL COVID19 | F44: 03 de agosto de 2020 | G44: 31 de Agosto de 2020 | H44: 5800000 | I44: 5800000 | J44: 4009 | K44: 5010 | L44: JUAN ESTEBAN SANCHEZ PAEZ | M44: 2020-08-15 | N44: https://www.contratos.gov.co/consultas/detalleProceso.do?numConstancia=20-4-11020364
A45: 43 | B45: 44190767 | C45: LUCIBELL ALVAREZ NAVARRO | D45: 3186-2020 | E45: ASESORA SUBGERENCIA CIENTIFICA | F45: 03 de agosto de 2020 | G45: 31 de Agosto de 2020 | H45: 5800000 | I45: 5800000 | J45: 4010 | K45: 5011 | L45: JUAN ESTEBAN SANCHEZ PAEZ | M45: 2020-08-15 | N45: https://www.contratos.gov.co/consultas/detalleProceso.do?numConstancia=20-4-11020366
A46: 44 | B46: 5055447 | C46: CARLOS ALBERTO CARBONELL ALVAREZ | D46: 3187-2020 | E46: AUDITOR DE CUENTAS MEDICAS | F46: 03 de agosto de 2020 | G46: 31 de Agosto de 2020 | H46: 5500000 | I46: 5500000 | J46: 4011 | K46: 5012 | L46: BETTY PERTUZ | M46: 2020-08-15 | N46: https://www.contratos.gov.co/consultas/detalleProceso.do?numConstancia=20-4-11020367
A47: 45 | B47: 1045698343 | C47: JOSE FRANCISCO INFANZON CASTRO | D47: 3188-2020 | E47: INGENERIO MECANICO- RECURSOS FISICOS | F47: 03 de agosto de 2020 | G47: 31 de Agosto de 2020 | H47: 5800000 | I47: 5800000 | J47: 4012 | K47: 5013 | L47: SANDRA SANMARTIN | M47: 2020-08-15 | N47: https://www.contratos.gov.co/consultas/detalleProceso.do?numConstancia=20-4-11020370
A48: 46 | B48: 40981378 | C48: LIDYS CASTILLO TOVAR | D48: 3189-2020 | E48: PROFESIONAL OFICINA PAGADURIA | F48: 03 de agosto de 2020 | G48: 31 de Agosto de 2020 | H48: 4000000 | I48: 4000000 | J48: 4013 | K48: 5014 | L48: LUIS DE MOYA | M48: 2020-08-15 | N48: https://www.contratos.gov.co/entidades/InsertarProcesoRegEspConDire.do
A49: 47 | B49: 32651445 | C49: MARTIZA SARMIENTO SANTOS | D49: 3190-2020 | E49: ASESOR DE PLANEACION ESTRATÉGICA Y SISTEMAS DE GESTIÓN CALIDAD /AMBIENTE/SST | F49: 03 de agosto de 2020 | G49: 31 de Agosto de 2020 | H49: 5800000 | I49: 5800000 | J49: 4014 | K49: 5015 | L49: JUAN ESTEBAN SANCHEZ PAEZ | M49: 2020-08-15 | N49: https://www.contratos.gov.co/consultas/detalleProceso.do?numConstancia=20-4-11020373
A50: 48 | B50: 32863895 | C50: LUZ ELENA MARRIAGA MONTERO | D50: 3191-2020 | E50: PROFESIONAL PLANEACION | F50: 03 de agosto de 2020 | G50: 31 de Agosto de 2020 | H50: 4000000 | I50: 4000000 | J50: 4015 | K50: 5016 | L50: SANDRA SANMARTIN | M50: 2020-08-15 | N50: https://www.contratos.gov.co/consultas/detalleProceso.do?numConstancia=20-4-11020374
A51: 49 | B51: 72314953 | C51: LEONEL DANIEL SILVA TAPIAS | D51: 3192-2020 | E51: REVISOR FISCAL | F51: 03 de agosto de 2020 | G51: 31 de Agosto de 2020 | H51: 8255982 | I51: 8255982 | J51: 4016 | K51: 5017 | L51: JUAN ESTEBAN SANCHEZ PAEZ | M51: 2020-08-15 | N51: https://www.contratos.gov.co/consultas/detalleProceso.do?numConstancia=20-4-11020377
A52: 50 | B52: 1042997169 | C52: CINDY PAOLA CERA MENDOZA | D52: 3193-2020 | E52: PROFESIONAL PRESUPUESTO | F52: 03 de agosto de 2020 | G52: 31 de Agosto de 2020 | H52: 3000000 | I52: 3000000 | J52: 4017 | K52: 5018 | L52: JORGE OLMOS NAVARRO | M52: 2020-08-15 | N52: https://www.contratos.gov.co/consultas/detalleProceso.do?numConstancia=20-4-11020379
A53: 51 | B53: 52618443 | C53: NATALIA ALONSO CARVAJAL | D53: 3194-2020 | E53: ASESOR GERENCIA | F53: 03 de agosto de 2020 | G53: 31 de Agosto de 2020 | H53: 5800000 | I53: 5800000 | J53: 4018 | K53: 5019 | L53: JUAN ESTEBAN SANCHEZ PAEZ | M53: 2020-08-15 | N53: https://www.contratos.gov.co/consultas/detalleProceso.do?numConstancia=20-4-11020380
A54: 52 | B54: 45757809 | C54: MILADIS MARINA MARTINEZ MEDINA | D54: 3195-2020 | E54: LIDER SIAU | F54: 03 de agosto de 2020 | G54: 31 de Agosto de 2020 | H54: 3000000 | I54: 3000000 | J54: 4019 | K54: 5020 | L54: BETTY PERTUZ | M54: 2020-08-15 | N54: https://www.contratos.gov.co/consultas/detalleProceso.do?numConstancia=20-4-11020381
A55: 53 | B55: 1140871897 | C55: JESICA FERNANDA DE CASTRO MANTILLA | D55: 3196-2020 | E55: INGENIERA QUIMICA | F55: 03 de agosto de 2020 | G55: 31 de Agosto de 2020 | H55: 4000000 | I55: 4000000 | J55: 4020 | K55: 5021 | L55: BETTY PERTUZ | M55: 2020-08-15 | N55: https://www.contratos.gov.co/consultas/detalleProceso.do?numConstancia=20-4-11020383
A56: 54 | B56: 1042421404 | C56: MARIAM DEL CARMEN CANTILLO MONTERO | D56: 3197-2020 | E56: AUDITOR DE CALIDAD Y SERVICIOS DE SALUD | F56: 03 de agosto de 2020 | G56: 31 de Agosto de 2020 | H56: 4000000 | I56: 4000000 | J56: 4021 | K56: 5022 | L56: BETTY PERTUZ | M56: 2020-08-15 | N56: https://www.contratos.gov.co/consultas/detalleProceso.do?numConstancia=20-4-11020385
A57: 55 | B57: 32852247 | C57: NORELLYS PAOLA MACHACON PRIETO | D57: 3198-2020 | E57: APOYO SISTEMA DE GESTION | F57: 03 de agosto de 2020 | G57: 31 de Agosto de 2020 | H57: 4000000 | I57: 4000000 | J57: 4022 | K57: 5023 | L57: BETTY PERTUZ | M57: 2020-08-15 | N57: https://www.contratos.gov.co/consultas/detalleProceso.do?numConstancia=20-4-11020386
A58: 56 | B58: 8745568 | C58: LUIS ENRIQUE PEREA VASQUEZ | D58: 3199-2020 | E58: AUDITOR DE CUENTAS MEDICAS | F58: 03 de agosto de 2020 | G58: 31 de Agosto de 2020 | H58: 4500000 | I58: 4500000 | J58: 4023 | K58: 5024 | L58: BETTY PERTUZ | M58: 2020-08-15 | N58: https://www.contratos.gov.co/consultas/detalleProceso.do?numConstancia=20-4-11020387
A59: 57 | B59: 72228319 | C59: BLADIMIR ALEXANDER SARMIENTO QUIÑONES | D59: 3200-2020 | E59: TECNICO EN SISTEMAS Y ELECTRONICO | F59: 03 de agosto de 2020 | G59: 31 de Agosto de 2020 | H59: 1900000 | I59: 1900000 | J59: 4024 | K59: 5025 | L59: ZULLY ROMERO | M59: 2020-08-15 | N59: https://www.contratos.gov.co/consultas/detalleProceso.do?numConstancia=20-4-11020388
A60: 58 | B60: 1042424161 | C60: YENSY ANGELINA ESCALANTE FERRER | D60: 3201-2020 | E60: AUXILIAR ADMINISTRATIVO CONTABLE | F60: 03 de agosto de 2020 | G60: 31 de Agosto de 2020 | H60: 2000000 | I60: 2000000 | J60: 4025 | K60: 5026 | L60: JORGE OLMOS NAVARRO | M60: 2020-08-15 | N60: https://www.contratos.gov.co/consultas/detalleProceso.do?numConstancia=20-4-11020389
A61: 59 | B61: 72432594 | C61: RUBEN DARIO UCROS | D61: 3202-2020 | E61: AUXILIAR FACTURACION | F61: 03 de agosto de 2020 | G61: 31 de Agosto de 2020 | H61: 2100000 | I61: 2100000 | J61: 4026 | K61: 5027 | L61: SANDRA SANMARTIN | M61: 2020-08-15 | N61: https://www.contratos.gov.co/consultas/detalleProceso.do?numConstancia=20-4-11020392
A62: 60 | B62: 22642515 | C62: NOHEMI ESPERANZA CASTRO LOPEZ | D62: 3203-2020 | E62: AUDITOR DE CALIDAD Y SERVICIOS DE SALUD | F62: 03 de agosto de 2020 | G62: 31 de Agosto de 2020 | H62: 4000000 | I62: 4000000 | J62: 4027 | K62: 5028 | L62: BETTY PERTUZ | M62: 2020-08-15 | N62: https://www.contratos.gov.co/consultas/detalleProceso.do?numConstancia=20-4-11020393
A63: 61 | B63: 8639410 | C63: CESAR OCTAVIO VARGAS DURAN | D63: 3204-2020 | E63: TECNICO AMBIENTAL | F63: 03 de agosto de 2020 | G63: 31 de Agosto de 2020 | H63: 2500000 | I63: 2500000 | J63: 4028 | K63: 5029 | L63: JAIME ALVAREZ NORIEGA | M63: 2020-08-15 | N63: https://www.contratos.gov.co/consultas/detalleProceso.do?numConstancia=20-4-11020394
A64: 62 | B64: 1047334999 | C64: MARTHA INES SALCEDO HUN | D64: 3205-2020 | E64: ASESORA GESTION AMBIENTAL | F64: 03 de agosto de 2020 | G64: 31 de Agosto de 2020 | H64: 5800000 | I64: 5800000 | J64: 4029 | K64: 5030 | L64: JUAN ESTEBAN SANCHEZ PAEZ | M64: 2020-08-15 | N64: https://www.contratos.gov.co/consultas/detalleProceso.do?numConstancia=20-4-11020396
A65: 63 | B65: 1124026102 | C65: LUISA FERNANDA PANA CARABALLO | D65: 3206-2020 | E65: LIDER PROCESOS FACTURACION CENTRAL | F65: 03 de agosto de 2020 | G65: 31 de Agosto de 2020 | H65: 2500000 | I65: 2500000 | J65: 4030 | K65: 5031 | L65: SANDRA SANMARTIN | M65: 2020-08-15 | N65: https://www.contratos.gov.co/consultas/detalleProceso.do?numConstancia=20-4-11020399
A66: 64 | B66: 1045676054 | C66: JHONNY ALVAREZ TORRENCILLA | D66: 3207-2020 | E66: INGENIERO DE SISTEMAS - PROCESOS DE SISTEMA DE INFORMACION EN FACTURACION CENTRAL | F66: 03 de agosto de 2020 | G66: 31 de Agosto de 2020 | H66: 4000000 | I66: 4000000 | J66: 4031 | K66: 5032 | L66: SANDRA SANMARTIN | M66: 2020-08-15 | N66: https://www.contratos.gov.co/consultas/detalleProceso.do?numConstancia=20-4-11020402
A67: 65 | B67: 44156926 | C67: GLADYS CECILIA ESCALANTE FERRER | D67: 3208-2020 | E67: AUDITOR DE CALIDAD Y SERVICIOS DE SALUD | F67: 03 de agosto de 2020 | G67: 31 de Agosto de 2020 | H67: 4000000 | I67: =+H67*1 -> 4000000 | J67: 4032 | K67: 5033 | L67: BETTY PERTUZ | M67: 2020-08-15 | N67: https://www.contratos.gov.co/consultas/detalleProceso.do?numConstancia=20-4-11020403
A68: 66 | B68: 1140847587 | C68: MAGANY JUDITH JARAMILLO MOLINA | D68: 3209-2020 | E68: INGENIERO DE SISTEMAS | F68: 03 de agosto de 2020 | G68: 31 de Agosto de 2020 | H68: 3000000 | I68: 3000000 | J68: 4033 | K68: 5034 | L68: ZULLY ROMERO | M68: 2020-08-15 | N68: https://www.contratos.gov.co/consultas/detalleProceso.do?numConstancia=20-4-11020404
A69: =+A68+1 -> 67 | B69: 1042451204 | C69: LEIDIS ESTHER MIRANDA MARCHENA | D69: 3210-2020 | E69: PROFESIONAL CONTADURIA | F69: 03 de agosto de 2020 | G69: 31 de Agosto de 2020 | H69: 3000000 | I69: 3000000 | J69: 4034 | K69: 5035 | L69: JORGE OLMOS NAVARRO | M69: 2020-08-15 | N69: https://www.contratos.gov.co/consultas/detalleProceso.do?numConstancia=20-4-11020405
A70: 68 | B70: 55225494 | C70: ULDYS ESTHER PONZON PORTO | D70: 3211-2020 | E70: LIDER SERVICIOS MEDICOS | F70: 03 de agosto de 2020 | G70: 31 de Agosto de 2020 | H70: 3700000 | I70: 3700000 | J70: 4035 | K70: 5036 | L70: BETTY PERTUZ | M70: 2020-08-15 | N70: https://www.contratos.gov.co/consultas/detalleProceso.do?numConstancia=20-4-11020406
A71: 69 | B71: 1043023724 | C71: JAILINE SOLANO MERCADO | D71: 3212-2020 | E71: ASESOR FINANCIERO | F71: 03 de agosto de 2020 | G71: 31 de Agosto de 2020 | H71: 5800000 | I71: 5800000 | J71: 4036 | K71: 5037 | L71: JUAN ESTEBAN SANCHEZ PAEZ | M71: 2020-08-15 | N71: https://www.contratos.gov.co/consultas/detalleProceso.do?numConstancia=20-4-11020408
A72: 70 | B72: 1143465478 | C72: YULEIMY LISETH YANCE CAMARGO | D72: 3213-2020 | E72: AUXILIAR ADMINISTRATIVO OFICINA JURIDICA | F72: 03 de agosto de 2020 | G72: 31 de Agosto de 2020 | H72: 2200000 | I72: 2200000 | J72: 4037 | K72: 5038 | L72: ORNELLA FIORENTINO | M72: 2020-08-15 | N72: https://www.contratos.gov.co/consultas/detalleProceso.do?numConstancia=20-4-11020409
A73: 71 | B73: 1041899345 | C73: YESMITH ADRIANA VIZCAINO CARRILLO | D73: 3214-2020 | E73: ASISTENTE ADMINISTRATIVO | F73: 03 de agosto de 2020 | G73: 31 de Agosto de 2020 | H73: 1900000 | I73: 1900000 | J73: 4038 | K73: 5039 | L73: FABIAN COLPAS OROZCO | M73: 2020-08-15 | N73: https://www.contratos.gov.co/consultas/detalleProceso.do?numConstancia=20-4-11020413
A74: 72 | B74: 85468633 | C74: GREGORIO RUIZ PACHECO | D74: 3215-2020 | E74: ABOGADO EXTERNO TALENTO HUMANO | F74: 03 de agosto de 2020 | G74: 31 de Agosto de 2020 | H74: 4000000 | I74: 4000000 | J74: 4039 | K74: 5040 | L74: FABIAN COLPAS OROZCO | M74: 2020-08-15 | N74: https://www.contratos.gov.co/consultas/detalleProceso.do?numConstancia=20-4-11020417
A75: 73 | B75: 32829531 | C75: MILENA DONADO OCHOA | D75: 3216-2020 | E75: APOYO COORDINACION ODONTOLOGIA | F75: 03 de agosto de 2020 | G75: 31 de Agosto de 2020 | H75: 4000000 | I75: 4000000 | J75: 4040 | K75: 5041 | L75: BETTY PERTUZ | M75: 2020-08-15 | N75: https://www.contratos.gov.co/consultas/detalleProceso.do?numConstancia=20-4-11020420
A76: 74 | B76: 57270649 | C76: MARTHA MATILDE JIMENEZ ROMERO | D76: 3217-2020 | E76: AUDITOR DE CALIDAD Y SERVICIOS DE SALUD | F76: 03 de agosto de 2020 | G76: 31 de Agosto de 2020 | H76: 4000000 | I76: 4000000 | J76: 4041 | K76: 5042 | L76: BETTY PERTUZ | M76: 2020-08-15 | N76: https://www.contratos.gov.co/consultas/detalleProceso.do?numConstancia=20-4-11020421
A77: 75 | B77: 72095954 | C77: JUAN CARLOS BARROS CARO | D77: 3218-2020 | E77: ASESOR GERENCIA | F77: 03 de agosto de 2020 | G77: 31 de Agosto de 2020 | H77: 4500000 | I77: 4500000 | J77: 4042 | K77: 5043 | L77: JUAN ESTEBAN SANCHEZ PAEZ | M77: 2020-08-15 | N77: https://www.contratos.gov.co/consultas/detalleProceso.do?numConstancia=20-4-11020423
A78: 76 | B78: 19619279 | C78: GUSTAVO SEGUNDO FLORIDO HATUN | D78: 3219-2020 | E78: AUDITOR DE CALIDAD Y SERVICIOS DE SALUD | F78: 03 de agosto de 2020 | G78: 31 de Agosto de 2020 | H78: 5000000 | I78: 5000000 | J78: 4043 | K78: 5044 | L78: BETTY PERTUZ | M78: 2020-08-15 | N78: https://www.contratos.gov.co/consultas/detalleProceso.do?numConstancia=20-4-11020424
A79: 77 | B79: 27895505 | C79: SANDRA GARCIA PEÑA | D79: 3220-2020 | E79: AUXILIAR FACTURACION | F79: 03 de agosto de 2020 | G79: 31 de Agosto de 2020 | H79: 1500000 | I79: 1500000 | J79: 4044 | K79: 5045 | L79: SANDRA SANMARTIN | M79: 2020-08-15 | N79: https://www.contratos.gov.co/consultas/detalleProceso.do?numConstancia=20-4-11020425
A80: 78 | B80: 22644596 | C80: GRACIELA BUSTOS RIVEROS | D80: 3221-2020 | E80: AUXILIAR ADMINISTRATIVO FACTURACIÒN | F80: 03 de agosto de 2020 | G80: 31 de Agosto de 2020 | H80: 2000000 | I80: 2000000 | J80: 4045 | K80: 5046 | L80: SANDRA SANMARTIN | M80: 2020-08-15 | N80: https://www.contratos.gov.co/consultas/detalleProceso.do?numConstancia=20-4-11020432
A81: 79 | B81: 1042471178 | C81: KAREM OLIANNA MONTOYA GIL | D81: 3222-2020 | E81: AUXILIAR ADMINISTRATIVO | F81: 03 de agosto de 2020 | G81: 31 de Agosto de 2020 | H81: 1700000 | I81: 1700000 | J81: 4046 | K81: 5047 | L81: SANDRA SANMARTIN | M81: 2020-08-15 | N81: https://www.contratos.gov.co/consultas/detalleProceso.do?numConstancia=20-4-11020435
A82: 80 | B82: 1002067698 | C82: RUTH MARINA DIAZ MAYORCA | D82: 3223-2020 | E82: AUXILIAR FACTURACION CENTRAL | F82: 03 de agosto de 2020 | G82: 31 de Agosto de 2020 | H82: 2500000 | I82: 2500000 | J82: 4047 | K82: 5048 | L82: SANDRA SANMARTIN | M82: 2020-08-15 | N82: https://www.contratos.gov.co/consultas/detalleProceso.do?numConstancia=20-4-11020436
A83: 81 | B83: 1042351489 | C83: YISLEY ZARETH BADILLO SARMIENTO | D83: 3224-2020 | E83: ENFERMERA JEFE | F83: 03 de agosto de 2020 | G83: 31 de Agosto de 2020 | H83: 2300000 | I83: 2300000 | J83: 4048 | K83: 5049 | L83: BETTY PERTUZ | M83: 2020-08-15 | N83: https://www.contratos.gov.co/consultas/detalleProceso.do?numConstancia=20-4-11020438
A84: 82 | B84: 1048217027 | C84: ONEIDA SAMIRA MARQUEZ NARVAEZ | D84: 3225-2020 | E84: PROFESIONAL - POLITOLOGA | F84: 03 de agosto de 2020 | G84: 31 de Agosto de 2020 | H84: 4000000 | I84: 4000000 | J84: 4049 | K84: 5050 | L84: GENARO GUTIERREZ DE PIÑERES | M84: 2020-08-15 | N84: https://www.contratos.gov.co/consultas/detalleProceso.do?numConstancia=20-4-11020439
A85: 83 | B85: 22665320 | C85: CLAUDIA DE LA CRUZ LEYVA | D85: 3226-2020 | E85: AUDITOR DE CALIDAD Y SERVICIOS DE SALUD | F85: 03 de agosto de 2020 | G85: 31 de Agosto de 2020 | H85: 5800000 | I85: 5800000 | J85: 4050 | K85: 5051 | L85: JUAN ESTEBAN SANCHEZ PAEZ | M85: 2020-08-15 | N85: https://www.contratos.gov.co/consultas/detalleProceso.do?numConstancia=20-4-11020443
A86: 84 | B86: 72151642 | C86: RUBEN DARIO LOZADA BARROS | D86: 3227-2020 | E86: CONTADOR | F86: 03 de agosto de 2020 | G86: 31 de Agosto de 2020 | H86: 4000000 | I86: 4000000 | J86: 4051 | K86: 5052 | L86: LUIS DE MOYA | M86: 2020-08-15 | N86: https://www.contratos.gov.co/consultas/detalleProceso.do?numConstancia=20-4-11020444
A87: 85 | B87: 72236961 | C87: EDWARD ENRIQUE SANCHEZ URZOLA | D87: 3228-2020 | E87: MENSAJERO | F87: 03 de agosto de 2020 | G87: 31 de Agosto de 2020 | H87: 1700000 | I87: 1700000 | J87: 4052 | K87: 5053 | L87: SANDRA SANMARTIN | M87: 2020-08-15 | N87: https://www.contratos.gov.co/consultas/detalleProceso.do?numConstancia=20-4-11020447
A88: 86 | B88: 77030162 | C88: YECITH MARTINEZ QUINTERO | D88: 3229-2020 | E88: ASISTETE ADMINISTRATIVO | F88: 03 de agosto de 2020 | G88: 31 de Agosto de 2020 | H88: 1800000 | I88: 1800000 | J88: 4053 | K88: 5054 | L88: SANDRA SANMARTIN | M88: 2020-08-15 | N88: https://www.contratos.gov.co/consultas/detalleProceso.do?numConstancia=20-4-11020450
A89: 87 | B89: 1129571476 | C89: ILIANA MATOS RAMOS | D89: 3230-2020 | E89: ABOGADO | F89: 03 de agosto de 2020 | G89: 31 de Agosto de 2020 | H89: 4000000 | I89: 4000000 | J89: 4054 | K89: 5055 | L89: ORNELLA FIORENTINO | M89: 2020-08-15 | N89: https://www.contratos.gov.co/consultas/detalleProceso.do?numConstancia=20-4-11020452
A90: 88 | B90: 32869223 | C90: LUCILA ISABEL FONTALVO HERRERA | D90: 3231-2020 | E90: AUXILIAR ADMINISTRATIVO TALENTO HUMANO | F90: 03 de agosto de 2020 | G90: 31 de Agosto de 2020 | H90: 2200000 | I90: 2200000 | J90: 4055 | K90: 5056 | L90: FABIAN COLPAS OROZCO | M90: 2020-08-15 | N90: https://www.contratos.gov.co/consultas/detalleProceso.do?numConstancia=20-4-11020453
A91: 89 | B91: 72220231 | C91: SERGIO IVAN KUNCEL MAURY | D91: 3232-2020 | E91: ASESOR GERENCIA | F91: 03 de agosto de 2020 | G91: 31 de Agosto de 2020 | H91: 5000000 | I91: 5000000 | J91: 4056 | K91: 5057 | L91: JUAN ESTEBAN SANCHEZ PAEZ | M91: 2020-08-15 | N91: https://www.contratos.gov.co/consultas/detalleProceso.do?numConstancia=20-4-11020454
A92: 90 | B92: 84453299 | C92: LUIS FERNANDO CUELLAR CANTILLO | D92: 3233-2020 | E92: ASESOR FINANCIERO | F92: 03 de agosto de 2020 | G92: 31 de Agosto de 2020 | H92: 3000000 | I92: 3000000 | J92: 4057 | K92: 5058 | L92: JORGE OLMOS NAVARRO | M92: 2020-08-15 | N92: https://www.contratos.gov.co/consultas/detalleProceso.do?numConstancia=20-4-11020457
A93: 91 | B93: 8680252 | C93: ALVARO SAMUEL PULGAR LEMUS | D93: 3234-2020 | E93: ORIENTADOR | F93: 03 de agosto de 2020 | G93: 31 de Agosto de 2020 | H93: 1270000 | I93: 1270000 | J93: 4058 | K93: 5059 | L93: SANDRA SANMARTIN | M93: 2020-08-15 | N93: https://www.contratos.gov.co/consultas/detalleProceso.do?numConstancia=20-4-11020458
A94: 92 | B94: 72293492 | C94: RODOLFO ENRIQUE NARVAEZ GUTIERREZ | D94: 3235-2020 | E94: PROFESIONAL ESTADISTICA | F94: 03 de agosto de 2020 | G94: 31 de Agosto de 2020 | H94: 3000000 | I94: 3000000 | J94: 4059 | K94: 5060 | L94: GENARO GUTIERREZ DE PIÑERES | M94: 2020-08-15 | N94: https://www.contratos.gov.co/consultas/detalleProceso.do?numConstancia=20-4-11020461
A95: 93 | B95: 22732194 | C95: MARLEY VASQUEZ VARGAS | D95: 3236-2020 | E95: LIDER DE FACTURACION EN CENTROS DE SALUD | F95: 03 de agosto de 2020 | G95: 31 de Agosto de 2020 | H95: 1700000 | I95: 1700000 | J95: 4060 | K95: 5061 | L95: SANDRA SANMARTIN | M95: 2020-08-15 | N95: https://www.contratos.gov.co/consultas/detalleProceso.do?numConstancia=20-4-11020466
A96: 94 | B96: 44190907 | C96: YENIS AHUMADA LECHUGA | D96: 3237-2020 | E96: ESPECIALISTA - SALUD OCUPACIONAL | F96: 03 de agosto de 2020 | G96: 31 de Agosto de 2020 | H96: 5000000 | I96: 5000000 | J96: 4061 | K96: 5062 | L96: JUAN ESTEBAN SANCHEZ PAEZ | M96: 2020-08-15 | N96: https://www.contratos.gov.co/consultas/detalleProceso.do?numConstancia=20-4-11020467
A97: 95 | B97: 55307392 | C97: LLILIANA PATRICIA PASTRANA PARODI | D97: 3238-2020 | E97: AUXILIAR ADMINISTRATIVO -FACTURACION | F97: 03 de agosto de 2020 | G97: 31 de Agosto de 2020 | H97: 2000000 | I97: =+H97*1 -> 2000000 | J97: 4062 | K97: 5063 | L97: SANDRA SANMARTIN | M97: 2020-08-15 | N97: https://www.contratos.gov.co/consultas/detalleProceso.do?numConstancia=20-4-11020468
A98: 96 | B98: 32892034 | C98: SANDY MARIA DE LA HOZ JIMENEZ | D98: 3239-2020 | E98: ASESOR DE ´ PRESUPUESTO | F98: 03 de agosto de 2020 | G98: 31 de Agosto de 2020 | H98: 4500000 | I98: 4500000 | J98: 4063 | K98: 5064 | L98: SANDRA SANMARTIN | M98: 2020-08-15 | N98: https://www.contratos.gov.co/consultas/detalleProceso.do?numConstancia=20-4-11020471
A99: 97 | B99: 22819397 | C99: MARIBEL PONCE MACHACADO | D99: 3240-2020 | E99: AUDITOR DE CALIDAD Y SERVICIOS DE SALUD | F99: 03 de agosto de 2020 | G99: 31 de Agosto de 2020 | H99: 3500000 | I99: 3500000 | J99: 4064 | K99: 5065 | L99: BETTY PERTUZ | M99: 2020-08-15 | N99: https://www.contratos.gov.co/consultas/detalleProceso.do?numConstancia=20-4-11020472
A100: 98 | B100: 72328953 | C100: FRANCISCO ALCIDES CARRANZA MENDOZA | D100: 3241-2020 | E100: AUXILIAR RECURSOS FISICOS | F100: 03 de agosto de 2020 | G100: 31 de Agosto de 2020 | H100: 2500000 | I100: 2500000 | J100: 4065 | K100: 5066 | L100: SANDRA SANMARTIN | M100: 2020-08-15 | N100: https://www.contratos.gov.co/consultas/detalleProceso.do?numConstancia=20-4-11020473
A101: 99 | B101: 72286138 | C101: MANUEL ALFONSO LOPEZ SANTANA | D101: 3242-2020 | E101: ABOGADO | F101: 03 de agosto de 2020 | G101: 31 de Agosto de 2020 | H101: 4000000 | I101: 4000000 | J101: 4066 | K101: 5067 | L101: ORNELLA FIORENTINO | M101: 2020-08-15 | N101: https://www.contratos.gov.co/consultas/detalleProceso.do?numConstancia=20-4-11020474
A102: 100 | B102: 1042455811 | C102: LEIDY MARCELA GARCIA TORRES | D102: 3243-2020 | E102: AUXILIAR ADMINISTRATIVO-VENTANILLA UNICA | F102: 03 de agosto de 2020 | G102: 31 de Agosto de 2020 | H102: 2500000 | I102: 2500000 | J102: 4067 | K102: 5068 | L102: SANDRA SANMARTIN | M102: 2020-08-15 | N102: https://www.contratos.gov.co/consultas/detalleProceso.do?numConstancia=20-4-11020478
A103: 101 | B103: 32623574 | C103: NANCY MARINA TAPIERO ACOSTA | D103: 3244-2020 | E103: ABOGADO | F103: 03 de agosto de 2020 | G103: 31 de Agosto de 2020 | H103: 4000000 | I103: 4000000 | J103: 4068 | K103: 5069 | L103: JUAN ESTEBAN SANCHEZ PAEZ | M103: 2020-08-15 | N103: https://www.contratos.gov.co/consultas/detalleProceso.do?numConstancia=20-4-11020479
A104: 102 | B104: 8733921 | C104: LUIS LEONARDO ANTOLINEZ FERNANDEZ | D104: 3245-2020 | E104: ABOGADO | F104: 03 de agosto de 2020 | G104: 31 de Agosto de 2020 | H104: 5000000 | I104: 5000000 | J104: 4069 | K104: 5070 | L104: ORNELLA FIORENTINO | M104: 2020-08-15 | N104: https://www.contratos.gov.co/consultas/detalleProceso.do?numConstancia=20-4-11020481
A105: 103 | B105: 32854523 | C105: DINA MARGARITA GOMEZ MORALES | D105: 3246-2020 | E105: FISIOTERAPEUTA | F105: 03 de agosto de 2020 | G105: 31 de Agosto de 2020 | H105: 3000000 | I105: 3000000 | J105: 4070 | K105: 5071 | L105: JUAN ESTEBAN SANCHEZ PAEZ | M105: 2020-08-15 | N105: https://www.contratos.gov.co/consultas/detalleProceso.do?numConstancia=20-4-11020485
A106: 104 | B106: 1143439595 | C106: DAYANA PAOLA OTALORA AMAYA | D106: 3247-2020 | E106: DIGITADOR PAI WEB | F106: 03 de agosto de 2020 | G106: 31 de Agosto de 2020 | H106: 1458000 | I106: 1458000 | J106: 4071 | K106: 5072 | L106: YURANIS BONIFAS | M106: 2020-08-15 | N106: https://www.contratos.gov.co/consultas/detalleProceso.do?numConstancia=20-4-11020486
A107: 105 | B107: 22468261 | C107: KANYA MALLERLY BERNAL BECERRA | D107: 3248-2020 | E107: DIGITADOR PAI WEB | F107: 03 de agosto de 2020 | G107: 31 de Agosto de 2020 | H107: 2200000 | I107: 2200000 | J107: 4072 | K107: 5073 | L107: YURANIS BONIFAS | M107: 2020-08-15 | N107: https://www.contratos.gov.co/consultas/detalleProceso.do?numConstancia=20-4-11020523
A108: 106 | B108: 1001798861 | C108: MARTHA LAURA VIZCAINO PEREZ | D108: 3249-2020 | E108: DIGITADOR PAI WEB | F108: 03 de agosto de 2020 | G108: 31 de Agosto de 2020 | H108: 1458000 | I108: 1458000 | J108: 4073 | K108: 5074 | L108: YURANIS BONIFAS | M108: 2020-08-15 | N108: https://www.contratos.gov.co/consultas/detalleProceso.do?numConstancia=20-4-11020524
A109: 107 | B109: 1143132965 | C109: YERLIS PAOLA GAMARRA BORJA | D109: 3250-2020 | E109: DIGITADOR PAI WEB | F109: 03 de agosto de 2020 | G109: 31 de Agosto de 2020 | H109: 1800000 | I109: 1800000 | J109: 4074 | K109: 5075 | L109: YURANIS BONIFAS | M109: 2020-08-15 | N109: https://www.contratos.gov.co/consultas/detalleProceso.do?numConstancia=20-4-11020525
A110: 108 | B110: 8566775 | C110: ALEJANDRO LIBARDO ALEMAN MARQUEZ | D110: 3251-2020 | E110: AUXILIAR DE ARCHIVO | F110: 03 de agosto de 2020 | G110: 31 de Agosto de 2020 | H110: 1500000 | I110: 1500000 | J110: 4075 | K110: 5076 | L110: SANDRA SANMARTIN | M110: 2020-08-15 | N110: https://www.contratos.gov.co/consultas/detalleProceso.do?numConstancia=20-4-11020526
A111: 109 | B111: 15666678 | C111: ALFREDO ANTONIO RAMIREZ PEREIRA | D111: 3252-2020 | E111: LIDER ARCHIVO CENTRAL | F111: 03 de agosto de 2020 | G111: 31 de Agosto de 2020 | H111: 3000000 | I111: 3000000 | J111: 4076 | K111: 5077 | L111: SANDRA SANMARTIN | M111: 2020-08-15 | N111: https://www.contratos.gov.co/consultas/detalleProceso.do?numConstancia=20-4-11020528
A112: 110 | B112: 32813366 | C112: ANA GONZALEZ ZAMBRANO | D112: 3253-2020 | E112: AUXILIAR DE ARCHIVO | F112: 03 de agosto de 2020 | G112: 31 de Agosto de 2020 | H112: 1500000 | I112: 1500000 | J112: 4077 | K112: 5078 | L112: SANDRA SANMARTIN | M112: 2020-08-15 | N112: https://www.contratos.gov.co/consultas/detalleProceso.do?numConstancia=20-4-11020529
A113: 111 | B113: 32772038 | C113: ELIANA BEATRIZ ABRIL DE LA ROSA | D113: 3254-2020 | E113: GESTION DOCUMENTAL TALENTO HUMANO | F113: 03 de agosto de 2020 | G113: 31 de Agosto de 2020 | H113: 1900000 | I113: 1900000 | J113: 4078 | K113: 5079 | L113: FABIAN COLPAS OROZCO | M113: 2020-08-15 | N113: https://www.contratos.gov.co/consultas/detalleProceso.do?numConstancia=20-4-11020530
A114: 112 | B114: 1007045398 | C114: ELIEZER VEGA ARAGON | D114: 3255-2020 | E114: AUXILIAR DE ARCHIVO | F114: 03 de agosto de 2020 | G114: 31 de Agosto de 2020 | H114: 1500000 | I114: 1500000 | J114: 4079 | K114: 5080 | L114: SANDRA SANMARTIN | M114: 2020-08-15 | N114: https://www.contratos.gov.co/consultas/detalleProceso.do?numConstancia=20-4-11020531
A115: 113 | B115: 1042448309 | C115: GERALDINE ALEXANDRA MEDRANO IGLESIAS | D115: 3256-2020 | E115: AUXILIAR DE ARCHIVO | F115: 03 de agosto de 2020 | G115: 31 de Agosto de 2020 | H115: 1900000 | I115: 1900000 | J115: 4080 | K115: 5081 | L115: SANDRA SANMARTIN | M115: 2020-08-15 | N115: https://www.contratos.gov.co/consultas/detalleProceso.do?numConstancia=20-4-11020532
A116: 114 | B116: 1047337864 | C116: MARTHA MARÍA ARIZA FONTALVO | D116: 3257-2020 | E116: AUXILIAR DE ARCHIVO | F116: 03 de agosto de 2020 | G116: 31 de Agosto de 2020 | H116: 1500000 | I116: 1500000 | J116: 4081 | K116: 5082 | L116: SANDRA SANMARTIN | M116: 2020-08-15 | N116: https://www.contratos.gov.co/consultas/detalleProceso.do?numConstancia=20-4-11020534
A117: 115 | B117: 32826802 | C117: ROCIO ISABEL FRIAS COLPAS | D117: 3258-2020 | E117: PERSONAL LIMPIEZA Y ASEO | F117: 03 de agosto de 2020 | G117: 31 de Agosto de 2020 | H117: 1215000 | I117: 1215000 | J117: 4082 | K117: 5083 | L117: JAIME ALVAREZ NORIEGA | M117: 2020-08-15 | N117: https://www.contratos.gov.co/consultas/detalleProceso.do?numConstancia=20-4-11020535
A118: 116 | B118: 32826839 | C118: BEATRIZ ISABEL SANMARTIN ESCORCIA | D118: 3259-2020 | E118: VACUNADORA PAI WEB | F118: 03 de agosto de 2020 | G118: 31 de Agosto de 2020 | H118: 1400000 | I118: 1400000 | J118: 4083 | K118: 5084 | L118: YURANIS BONIFAS | M118: 2020-08-15 | N118: https://www.contratos.gov.co/consultas/detalleProceso.do?numConstancia=20-4-11020536
A119: 117 | B119: 8647518 | C119: LUIS CARLOS MERCADO MARTINEZ | D119: 3260-2020 | E119: AUXILIAR DE ARCHIVO | F119: 03 de agosto de 2020 | G119: 31 de Agosto de 2020 | H119: 2000000 | I119: 2000000 | J119: 4084 | K119: 5085 | L119: SANDRA SANMARTIN | M119: 2020-08-15 | N119: https://www.contratos.gov.co/consultas/detalleProceso.do?numConstancia=20-4-11020537
A120: 118 | B120: 1007124107 | C120: JEAN CARLOS PEÑA CERVANTES | D120: 3261-2020 | E120: AUXILIAR DE ARCHIVO | F120: 03 de agosto de 2020 | G120: 31 de Agosto de 2020 | H120: 1900000 | I120: 1900000 | J120: 4085 | K120: 5086 | L120: SANDRA SANMARTIN | M120: 2020-08-15 | N120: https://www.contratos.gov.co/consultas/detalleProceso.do?numConstancia=20-4-11020539
A121: 119 | B121: 32818371 | C121: IVETTE CECILIA SARMIENTO DONADO | D121: 3262-2020 | E121: AUXILIAR DE ARCHIVO | F121: 03 de agosto de 2020 | G121: 31 de Agosto de 2020 | H121: 1500000 | I121: 1500000 | J121: 4086 | K121: 5087 | L121: SANDRA SANMARTIN | M121: 2020-08-15 | N121: https://www.contratos.gov.co/consultas/detalleProceso.do?numConstancia=20-4-11020541
A122: 120 | B122: 40993662 | C122: YEIMIS ESTHER DE LAS AGUAS ARIZA | D122: 3263-2020 | E122: AUXILIAR DE ARCHIVO | F122: 03 de agosto de 2020 | G122: 31 de Agosto de 2020 | H122: 2000000 | I122: 2000000 | J122: 4087 | K122: 5088 | L122: SANDRA SANMARTIN | M122: 2020-08-15 | N122: https://www.contratos.gov.co/consultas/detalleProceso.do?numConstancia=20-4-11020543
A123: 121 | B123: 72098736 | C123: EVARISTO RAFAEL BARRIOS DE LA ROSA | D123: 3264-2020 | E123: TECNICO DE ALMACEN | F123: 03 de agosto de 2020 | G123: 31 de Agosto de 2020 | H123: 2300000 | I123: 2300000 | J123: 4088 | K123: 5089 | L123: ESTARLEN LECHUGA | M123: 2020-08-15 | N123: https://www.contratos.gov.co/consultas/detalleProceso.do?numConstancia=20-4-11020546
A124: 122 | B124: 1001893516 | C124: ANDREA ALEJANDRA CERVANTES CORNIN | D124: 3265-2020 | E124: AUXILIAR DE ARCHIVO | F124: 03 de agosto de 2020 | G124: 31 de Agosto de 2020 | H124: 1900000 | I124: 1900000 | J124: 4089 | K124: 5090 | L124: SANDRA SANMARTIN | M124: 2020-08-15 | N124: https://www.contratos.gov.co/consultas/detalleProceso.do?numConstancia=20-4-11020547
A125: 123 | B125: 22664852 | C125: VILMAIRA JUDITH BOLANO VALENCIA | D125: 3266-2020 | E125: GESTION DOCUMENTAL TALENTO HUMANO | F125: 03 de agosto de 2020 | G125: 31 de Agosto de 2020 | H125: 1700000 | I125: 1700000 | J125: 4090 | K125: 5091 | L125: FABIAN COLPAS OROZCO | M125: 2020-08-15 | N125: https://www.contratos.gov.co/consultas/detalleProceso.do?numConstancia=20-4-11020548
A126: 124 | B126: 32816898 | C126: ISABEL OSORIO BARRIOS | D126: 3267-2020 | E126: VACUNADORA PAI WEB | F126: 03 de agosto de 2020 | G126: 31 de Agosto de 2020 | H126: 1400000 | I126: 1400000 | J126: 4091 | K126: 5092 | L126: YURANIS BONIFAS | M126: 2020-08-15 | N126: https://www.contratos.gov.co/consultas/detalleProceso.do?numConstancia=20-4-11020552
A127: 125 | B127: 1001800132 | C127: YARIMA CHARRIS BOLAÑO | D127: 3268-2020 | E127: GESTION DOCUMENTAL TALENTO HUMANO | F127: 03 de agosto de 2020 | G127: 31 de Agosto de 2020 | H127: 1700000 | I127: 1700000 | J127: 4092 | K127: 5093 | L127: FABIAN COLPAS OROZCO | M127: 2020-08-15 | N127: https://www.contratos.gov.co/consultas/detalleProceso.do?numConstancia=20-4-11020553
A128: 126 | B128: 55221348 | C128: MERCEDES SUSANA ESTARITA GUTIERREZ DE PIÑERES | D128: 3269-2020 | E128: AUXILIAR DE ARCHIVO | F128: 03 de agosto de 2020 | G128: 31 de Agosto de 2020 | H128: 2000000 | I128: 2000000 | J128: 4093 | K128: 5094 | L128: SANDRA SANMARTIN | M128: 2020-08-16 | N128: https://www.contratos.gov.co/consultas/detalleProceso.do?numConstancia=20-4-11020554
A129: 127 | B129: 1001878251 | C129: MAYRA ALEJANDRA ESCORCIA DE LA HOZ | D129: 3270-2020 | E129: AUXILIAR DE ARCHIVO | F129: 03 de agosto de 2020 | G129: 31 de Agosto de 2020 | H129: 1500000 | I129: 1500000 | J129: 4094 | K129: 5095 | L129: SANDRA SANMARTIN | M129: 2020-08-16 | N129: https://www.contratos.gov.co/consultas/detalleProceso.do?numConstancia=20-4-11020555
A130: 128 | B130: 22446125 | C130: GENOVEVA MARIA LLANES JEREZ | D130: 3271-2020 | E130: VACUNADORA PAI WEB | F130: 03 de agosto de 2020 | G130: 31 de Agosto de 2020 | H130: 1400000 | I130: 1400000 | J130: 4095 | K130: 5096 | L130: YURANIS BONIFAS | M130: 2020-08-16 | N130: https://www.contratos.gov.co/consultas/detalleProceso.do?numConstancia=20-4-11020556
A131: 129 | B131: 72098690 | C131: JAVIER ENRIQUE BARANDICA | D131: 3272-2020 | E131: TECNICO DE ALMACEN | F131: 03 de agosto de 2020 | G131: 31 de Agosto de 2020 | H131: 2300000 | I131: 2300000 | J131: 4096 | K131: 5097 | L131: ESTARLEN LECHUGA | M131: 2020-08-16 | N131: https://www.contratos.gov.co/consultas/detalleProceso.do?numConstancia=20-4-11020578
A132: 130 | B132: 1043002864 | C132: JAIRO ISACC BARRIOS AVILA | D132: 3273-2020 | E132: AUXILIAR DE ARCHIVO | F132: 03 de agosto de 2020 | G132: 31 de Agosto de 2020 | H132: 1900000 | I132: 1900000 | J132: 4097 | K132: 5098 | L132: SANDRA SANMARTIN | M132: 2020-08-16 | N132: https://www.contratos.gov.co/consultas/detalleProceso.do?numConstancia=20-4-11020580
A133: =+A132+1 -> 131 | B133: 1001881009 | C133: ARMANDO JOSE JINETE BARRIOS | D133: 3274-2020 | E133: AUXILIAR DE ARCHIVO | F133: 03 de agosto de 2020 | G133: 31 de Agosto de 2020 | H133: 1500000 | I133: 1500000 | J133: 4098 | K133: 5099 | L133: SANDRA SANMARTIN | M133: 2020-08-16 | N133: https://www.contratos.gov.co/consultas/detalleProceso.do?numConstancia=20-4-11020581
A134: 132 | B134: 32788911 | C134: PEGGY ESTHER CARRILLO MUÑOZ | D134: 3275-2020 | E134: DIGITADOR PAI WEB | F134: 03 de agosto de 2020 | G134: 31 de Agosto de 2020 | H134: 1458000 | I134: 1458000 | J134: 4099 | K134: 5100 | L134: YURANIS BONIFAS | M134: 2020-08-16 | N134: https://www.contratos.gov.co/consultas/detalleProceso.do?numConstancia=20-4-11020582
A135: 133 | B135: 32820220 | C135: YARLENE DEL SOCORRO DE AVILA DE ALBA | D135: 3276-2020 | E135: VACUNADORA PAI WEB | F135: 03 de agosto de 2020 | G135: 31 de Agosto de 2020 | H135: 1400000 | I135: 1400000 | J135: 4100 | K135: 5101 | L135: YURANIS BONIFAS | M135: 2020-08-16 | N135: https://www.contratos.gov.co/consultas/detalleProceso.do?numConstancia=20-4-11020583
A136: 134 | B136: 32619158 | C136: ISABEL HERRERA PACHECO | D136: 3277-2020 | E136: VACUNADORA PAI WEB | F136: 03 de agosto de 2020 | G136: 31 de Agosto de 2020 | H136: 1400000 | I136: 1400000 | J136: 4101 | K136: 5102 | L136: YURANIS BONIFAS | M136: 2020-08-16 | N136: https://www.contratos.gov.co/consultas/detalleProceso.do?numConstancia=20-4-11020585
A137: 135 | B137: 79678698 | C137: WILSON PASTOR RUIZ ORELLANO | D137: 3278-2020 | E137: AUXILIAR DE ARCHIVO | F137: 03 de agosto de 2020 | G137: 31 de Agosto de 2020 | H137: 1700000 | I137: 1700000 | J137: 4102 | K137: 5103 | L137: SANDRA SANMARTIN | M137: 2020-08-16 | N137: https://www.contratos.gov.co/consultas/detalleProceso.do?numConstancia=20-4-11020586
A138: 136 | B138: 1043605412 | C138: SANDRA MILENA REALES ARIZA | D138: 3279-2020 | E138: AUXILIAR DE ARCHIVO | F138: 03 de agosto de 2020 | G138: 31 de Agosto de 2020 | H138: 1700000 | I138: 1700000 | J138: 4103 | K138: 5104 | L138: SANDRA SANMARTIN | M138: 2020-08-16 | N138: https://www.contratos.gov.co/consultas/detalleProceso.do?numConstancia=20-4-11020588
A139: 137 | B139: 55250327 | C139: YURANIS BONIFAS CAÑAS | D139: 3280-2020 | E139: COORDINADORA PAIWEB | F139: 03 de agosto de 2020 | G139: 31 de Agosto de 2020 | H139: 3000000 | I139: 3000000 | J139: 4104 | K139: 5105 | L139: NILSA ARIZA MARQUEZ | M139: 2020-08-16 | N139: https://www.contratos.gov.co/consultas/detalleProceso.do?numConstancia=20-4-11020589
A140: 138 | B140: 1043027730 | C140: MANUEL JOSE URICOCHEA VASQUEZ | D140: 3281-2020 | E140: GESTION DOCUMENTAL TALENTO HUMANO | F140: 03 de agosto de 2020 | G140: 31 de Agosto de 2020 | H140: 1900000 | I140: 1900000 | J140: 4105 | K140: 5106 | L140: FABIAN COLPAS OROZCO | M140: 2020-08-16 | N140: https://www.contratos.gov.co/consultas/detalleProceso.do?numConstancia=20-4-11020590
A141: 139 | B141: 1043010710 | C141: LUIS FERNANDO ESTRADA GUERRERO | D141: 3282-2020 | E141: AUXILIAR DE ARCHIVO | F141: 03 de agosto de 2020 | G141: 31 de Agosto de 2020 | H141: 1900000 | I141: 1900000 | J141: 4106 | K141: 5107 | L141: SANDRA SANMARTIN | M141: 2020-08-16 | N141: https://www.contratos.gov.co/consultas/detalleProceso.do?numConstancia=20-4-11020591
A142: 140 | B142: 1041901335 | C142: JENNIFER LABARRERA RUA | D142: 3283-2020 | E142: DIGITADOR PAI WEB | F142: 03 de agosto de 2020 | G142: 31 de Agosto de 2020 | H142: 1458000 | I142: 1458000 | J142: 4107 | K142: 5108 | L142: YURANIS BONIFAS | M142: 2020-08-16 | N142: https://www.contratos.gov.co/consultas/detalleProceso.do?numConstancia=20-4-11020592
A143: 141 | B143: 1047350428 | C143: ELENA PATRICIA RIVAS VERONA | D143: 3284-2020 | E143: DIGITADOR PAI WEB | F143: 03 de agosto de 2020 | G143: 31 de Agosto de 2020 | H143: 1458000 | I143: 1458000 | J143: 4108 | K143: 5109 | L143: YURANIS BONIFAS | M143: 2020-08-16 | N143: https://www.contratos.gov.co/consultas/detalleProceso.do?numConstancia=20-4-11020593
A144: 142 | B144: 73140179 | C144: JULIO CESAR LOPEZ ROMERO | D144: 3285-2020 | E144: DIGITADOR PAI WEB | F144: 03 de agosto de 2020 | G144: 31 de Agosto de 2020 | H144: 1458000 | I144: =+H144*1 -> 1458000 | J144: 4109 | K144: 5110 | L144: YURANIS BONIFAS | M144: 2020-08-16 | N144: https://www.contratos.gov.co/consultas/detalleProceso.do?numConstancia=20-4-11020596
A145: 143 | B145: 8762665 | C145: ELIECER DE JESUS CALLE QUINTERO | D145: 3286-2020 | E145: TECNICO ALMACEN | F145: 03 de agosto de 2020 | G145: 31 de Agosto de 2020 | H145: 1900000 | I145: 1900000 | J145: 4110 | K145: 5111 | L145: ESTARLEN LECHUGA | M145: 2020-08-16 | N145: https://www.contratos.gov.co/consultas/detalleProceso.do?numConstancia=20-4-11020597
A146: 144 | B146: 1234888398 | C146: STEFANY CECILIA MANOTAS CERDA | D146: 3287-2020 | E146: DIGITADOR PAI WEB | F146: 03 de agosto de 2020 | G146: 31 de Agosto de 2020 | H146: 1458000 | I146: 1458000 | J146: 4111 | K146: 5112 | L146: YURANIS BONIFAS | M146: 2020-08-16 | N146: https://www.contratos.gov.co/consultas/detalleProceso.do?numConstancia=20-4-11020598
A147: 145 | B147: 1041890825 | C147: JHOSIMAR GUETTE CANTILLO | D147: 3288-2020 | E147: GESTION DOCUMENTAL TALENTO HUMANO | F147: 03 de agosto de 2020 | G147: 31 de Agosto de 2020 | H147: 1700000 | I147: 1700000 | J147: 4112 | K147: 5113 | L147: FABIAN COLPAS OROZCO | M147: 2020-08-16 | N147: https://www.contratos.gov.co/consultas/detalleProceso.do?numConstancia=20-4-11020600
A148: 146 | B148: 32730545 | C148: NASLY DEL CARMEN CAMPO MARTINEZ | D148: 3289-2020 | E148: AUXILIAR DE ARCHIVO | F148: 03 de agosto de 2020 | G148: 31 de Agosto de 2020 | H148: 1600000 | I148: 1600000 | J148: 4113 | K148: 5114 | L148: SANDRA SANMARTIN | M148: 2020-08-16 | N148: https://www.contratos.gov.co/consultas/detalleProceso.do?numConstancia=20-4-11020601
A149: 147 | B149: 22741244 | C149: ARLETH PATRICIA CARRILLO GARVIN | D149: 3290-2020 | E149: ENFERMERA JEFE DE PROMOCIÓN Y MANTENIMIENTO DE LA SALUD | F149: 03 de agosto de 2020 | G149: 31 de Agosto de 2020 | H149: 2300000 | I149: 2300000 | J149: 4114 | K149: 5115 | L149: NILSA ARIZA MARQUEZ | M149: 2020-08-16 | N149: https://www.contratos.gov.co/consultas/detalleProceso.do?numConstancia=20-4-11020603
A150: 148 | B150: 1140889995 | C150: CAROLAY JHOANA LUNA GOMEZ | D150: 3291-2020 | E150: ASISTENTE ADMINISTRATIVO COORDINACION MEDICA | F150: 03 de agosto de 2020 | G150: 31 de Agosto de 2020 | H150: 1900000 | I150: 1900000 | J150: 4115 | K150: 5116 | L150: SERGIO BOVEA MARIN | M150: 2020-08-16 | N150: https://www.contratos.gov.co/consultas/detalleProceso.do?numConstancia=20-4-11020604
A151: 149 | B151: 55309225 | C151: ADRIANA BALLESTAS MARTINEZ | D151: 3292-2020 | E151: MEDICO DE URGENCIA | F151: 03 de agosto de 2020 | G151: 31 de Agosto de 2020 | H151: 3072000 | I151: 3072000 | J151: 4116 | K151: 5117 | L151: SERGIO BOVEA MARIN | M151: 2020-08-16 | N151: https://www.contratos.gov.co/consultas/detalleProceso.do?numConstancia=20-4-11020606
A152: 150 | B152: 1042428171 | C152: ALEX ENRIQUE VILLARREAL IBAÑEZ | D152: 3293-2020 | E152: ODONTOLOGO | F152: 03 de agosto de 2020 | G152: 31 de Agosto de 2020 | H152: 1900000 | I152: 1900000 | J152: 4117 | K152: 5118 | L152: SERGIO BOVEA MARIN | M152: 2020-08-16 | N152: https://www.contratos.gov.co/consultas/detalleProceso.do?numConstancia=20-4-11020607
A153: 151 | B153: 22523223 | C153: ALEXANDRA ESTHER MOLINA PEREZ | D153: 3294-2020 | E153: PERSONAL LIMPIEZA Y ASEO URGENCIA | F153: 03 de agosto de 2020 | G153: 31 de Agosto de 2020 | H153: 1653600 | I153: 1653600 | J153: 4118 | K153: 5119 | L153: JAIME ALVAREZ NORIEGA | M153: 2020-08-23 | N153: https://www.contratos.gov.co/consultas/detalleProceso.do?numConstancia=20-4-11020609
A154: 152 | B154: 72000601 | C154: ALEXIS JAVIER SUAREZ CABALLERO | D154: 3295-2020 | E154: AUXILIAR DE FACTURACIÓN URGENCIA | F154: 03 de agosto de 2020 | G154: 31 de Agosto de 2020 | H154: 1680000 | I154: 1680000 | J154: 4119 | K154: 5120 | L154: SANDRA SANMARTIN | M154: 2020-08-24 | N154: https://www.contratos.gov.co/consultas/detalleProceso.do?numConstancia=20-4-11020611
A155: 153 | B155: 8697543 | C155: ALVARO ARENAS GONZALEZ | D155: 3296-2020 | E155: MEDICO DE RUTA INTEGRAL MATERNO PERINATAL | F155: 03 de agosto de 2020 | G155: 31 de Agosto de 2020 | H155: 5088000 | I155: 5088000 | J155: 4120 | K155: 5121 | L155: SERGIO BOVEA MARIN | M155: 2020-08-16 | N155: https://www.contratos.gov.co/consultas/detalleProceso.do?numConstancia=20-4-11020613
A156: 154 | B156: 8501206 | C156: AUGUSTO RAFAEL VALENCIA OCAMPO | D156: 3297-2020 | E156: AUXILIAR DE FACTURACIÓN URGENCIA | F156: 03 de agosto de 2020 | G156: 31 de Agosto de 2020 | H156: 1680000 | I156: 1680000 | J156: 4121 | K156: 5122 | L156: SANDRA SANMARTIN | M156: 2020-08-16 | N156: https://www.contratos.gov.co/consultas/detalleProceso.do?numConstancia=20-4-11020614
A157: 155 | B157: 1140872217 | C157: BLEYDIS LORAINE PELAEZ LOBO | D157: 3298-2020 | E157: MEDICO DE URGENCIA | F157: 03 de agosto de 2020 | G157: 31 de Agosto de 2020 | H157: 3072000 | I157: 3072000 | J157: 4122 | K157: 5123 | L157: SERGIO BOVEA MARIN | M157: 2020-08-16 | N157: https://www.contratos.gov.co/consultas/detalleProceso.do?numConstancia=20-4-11020616
A158: 156 | B158: 44158949 | C158: CARMEN PACHECO VARELA | D158: 3299-2020 | E158: PERSONAL LIMPIEZA Y ASEO URGENCIA | F158: 03 de agosto de 2020 | G158: 31 de Agosto de 2020 | H158: 1653600 | I158: 1653600 | J158: 4123 | K158: 5124 | L158: JAIME ALVAREZ NORIEGA | M158: 2020-08-16 | N158: https://www.contratos.gov.co/consultas/detalleProceso.do?numConstancia=20-4-11020620
A159: 157 | B159: 32712485 | C159: CASILDA LARA SOLANO | D159: 3300-2020 | E159: MEDICO DE RUTA INTEGRAL MATERNO PERINATAL | F159: 03 de agosto de 2020 | G159: 31 de Agosto de 2020 | H159: 2120000 | I159: 2120000 | J159: 4124 | K159: 5125 | L159: SERGIO BOVEA MARIN | M159: 2020-08-16 | N159: https://www.contratos.gov.co/consultas/detalleProceso.do?numConstancia=20-4-11020621
A160: 158 | B160: 1042442558 | C160: DANISA PAOLA BARRIOS DE ALBA | D160: 3301-2020 | E160: NUTRICIONISTA | F160: 03 de agosto de 2020 | G160: 31 de Agosto de 2020 | H160: 2760000 | I160: 2760000 | J160: 4125 | K160: 5126 | L160: SERGIO BOVEA MARIN | M160: 2020-08-16 | N160: https://www.contratos.gov.co/consultas/detalleProceso.do?numConstancia=20-4-11020636
A161: 159 | B161: 1082405551 | C161: DESIRETH ESTRADA FERNANDEZ | D161: 3302-2020 | E161: ENFERMERA JEFE DE PROMOCIÓN Y MANTENIMIENTO DE LA SALUD | F161: 03 de agosto de 2020 | G161: 31 de Agosto de 2020 | H161: =2300000 -> 2300000 | I161: =+H161*1 -> 2300000 | J161: 4126 | K161: 5127 | L161: SERGIO BOVEA MARIN | M161: 2020-08-16 | N161: https://www.contratos.gov.co/consultas/detalleProceso.do?numConstancia=20-4-11020640
A162: 160 | B162: 32818082 | C162: DIVINA LUZ NIETO ZAMBRANO | D162: 3303-2020 | E162: PERSONAL LIMPIEZA Y ASEO URGENCIA | F162: 03 de agosto de 2020 | G162: 31 de Agosto de 2020 | H162: 1653600 | I162: 1653600 | J162: 4127 | K162: 5128 | L162: JAIME ALVAREZ NORIEGA | M162: 2020-08-16 | N162: https://www.contratos.gov.co/consultas/detalleProceso.do?numConstancia=20-4-11020641
A163: 161 | B163: 8734956 | C163: EFRAIN CANTILLO GUERRERO | D163: 3304-2020 | E163: CONDUCTOR DE AMBULANCIA | F163: 03 de agosto de 2020 | G163: 31 de Agosto de 2020 | H163: 2160000 | I163: 2160000 | J163: 4128 | K163: 5129 | L163: BETTY PERTUZ | M163: 2020-08-16 | N163: https://www.contratos.gov.co/consultas/detalleProceso.do?numConstancia=20-4-11020643
A164: 162 | B164: 8750161 | C164: EFRAIN DE LA HOZ ROCHEL | D164: 3305-2020 | E164: MEDICO DE URGENCIA | F164: 03 de agosto de 2020 | G164: 31 de Agosto de 2020 | H164: 3072000 | I164: 3072000 | J164: 4129 | K164: 5130 | L164: SERGIO BOVEA MARIN | M164: 2020-08-16 | N164: https://www.contratos.gov.co/consultas/detalleProceso.do?numConstancia=20-4-11020645
A165: 163 | B165: 1042436156 | C165: EMELY ESCORCIA MARTINEZ | D165: 3306-2020 | E165: ENFERMERA JEFE URGENCIAS | F165: 03 de agosto de 2020 | G165: 31 de Agosto de 2020 | H165: 2280000 | I165: 2280000 | J165: 4130 | K165: 5131 | L165: SERGIO BOVEA MARIN | M165: 2020-08-16 | N165: https://www.contratos.gov.co/consultas/detalleProceso.do?numConstancia=20-4-11020653
A166: 164 | B166: 22693401 | C166: EMILIA ANTONIA BARCELO DE PARRA | D166: 3307-2020 | E166: PERSONAL LIMPIEZA Y ASEO URGENCIA | F166: 03 de agosto de 2020 | G166: 31 de Agosto de 2020 | H166: 1653600 | I166: 1653600 | J166: 4131 | K166: 5132 | L166: JAIME ALVAREZ NORIEGA | M166: 2020-08-16 | N166: https://www.contratos.gov.co/consultas/detalleProceso.do?numConstancia=20-4-11020655
A167: 165 | B167: 8718276 | C167: ENRIQUE PACHECO PACHECO | D167: 3308-2020 | E167: MEDICO DE URGENCIA | F167: 03 de agosto de 2020 | G167: 31 de Agosto de 2020 | H167: 3072000 | I167: 3072000 | J167: 4132 | K167: 5133 | L167: SERGIO BOVEA MARIN | M167: 2020-08-16 | N167: https://www.contratos.gov.co/consultas/detalleProceso.do?numConstancia=20-4-11020659
A168: 166 | B168: 32821813 | C168: ESPERANZA OROZCO MORENO | D168: 3309-2020 | E168: AUXILIAR DE ENFERMERIA URGENCIAS | F168: 03 de agosto de 2020 | G168: 31 de Agosto de 2020 | H168: 1653600 | I168: 1653600 | J168: 4133 | K168: 5134 | L168: SERGIO BOVEA MARIN | M168: 2020-08-16 | N168: https://www.contratos.gov.co/consultas/detalleProceso.do?numConstancia=20-4-11020660
A169: 167 | B169: 1042448518 | C169: GIANINA ANDREA GRAVINI DE LA HOZ | D169: 3310-2020 | E169: MEDICO DE URGENCIA | F169: 03 de agosto de 2020 | G169: 31 de Agosto de 2020 | H169: 3072000 | I169: 3072000 | J169: 4134 | K169: 5135 | L169: SERGIO BOVEA MARIN | M169: 2020-08-16 | N169: https://www.contratos.gov.co/consultas/detalleProceso.do?numConstancia=20-4-11020663
A170: 168 | B170: 49555306 | C170: GLADYS DIAZ MARIN | D170: 3311-2020 | E170: AUXILIAR DE FACTURACIÓN URGENCIA | F170: 03 de agosto de 2020 | G170: 31 de Agosto de 2020 | H170: 1680000 | I170: 1680000 | J170: 4135 | K170: 5136 | L170: SANDRA SANMARTIN | M170: 2020-08-16 | N170: https://www.contratos.gov.co/consultas/detalleProceso.do?numConstancia=20-4-11020666
A171: 169 | B171: 1042440903 | C171: HEIDY MARTINEZ GUTIERREZ | D171: 3312-2020 | E171: AUXILIAR DE FACTURACIÓN URGENCIA | F171: 03 de agosto de 2020 | G171: 31 de Agosto de 2020 | H171: 1680000 | I171: 1680000 | J171: 4136 | K171: 5137 | L171: SANDRA SANMARTIN | M171: 2020-08-16 | N171: https://www.contratos.gov.co/consultas/detalleProceso.do?numConstancia=20-4-11020674
A172: 170 | B172: 32861543 | C172: INGRID NAVARRO CARRILLO | D172: 3313-2020 | E172: FISIOTERAPEUTA | F172: 03 de agosto de 2020 | G172: 31 de Agosto de 2020 | H172: 5800000 | I172: 5800000 | J172: 4137 | K172: 5138 | L172: SERGIO BOVEA MARIN | M172: 2020-08-16 | N172: https://www.contratos.gov.co/consultas/detalleProceso.do?numConstancia=20-4-11020676
A173: 171 | B173: 72429926 | C173: JAIRO ESCOBAR ROMERO | D173: 3314-2020 | E173: MEDICO DE URGENCIA | F173: 03 de agosto de 2020 | G173: 31 de Agosto de 2020 | H173: 3072000 | I173: 3072000 | J173: 4138 | K173: 5139 | L173: SERGIO BOVEA MARIN | M173: 2020-08-16 | N173: https://www.contratos.gov.co/consultas/detalleProceso.do?numConstancia=20-4-11020679
A174: 172 | B174: 32869709 | C174: JENECIS BARRERA MIRANDA | D174: 3315-2020 | E174: ENFERMERA JEFE DE RUTA INTEGRAL MATERNO PERINATAL | F174: 03 de agosto de 2020 | G174: 31 de Agosto de 2020 | H174: 2760000 | I174: 2760000 | J174: 4139 | K174: 5140 | L174: SERGIO BOVEA MARIN | M174: 2020-08-16 | N174: https://www.contratos.gov.co/consultas/detalleProceso.do?numConstancia=20-4-11020680
A175: 173 | B175: 1042444925 | C175: JESUS MORENO DE ALBA | D175: 3316-2020 | E175: AUXILIAR DE FACTURACIÓN URGENCIA | F175: 03 de agosto de 2020 | G175: 31 de Agosto de 2020 | H175: 1680000 | I175: 1680000 | J175: 4140 | K175: 5141 | L175: SANDRA SANMARTIN | M175: 2020-08-16 | N175: https://www.contratos.gov.co/consultas/detalleProceso.do?numConstancia=20-4-11020681
A176: 174 | B176: 44161544 | C176: JHOANA CATALINA SANDOVAL ESCORCIA | D176: 3317-2020 | E176: ENFERMERA JEFE URGENCIAS | F176: 03 de agosto de 2020 | G176: 31 de Agosto de 2020 | H176: 2280000 | I176: 2280000 | J176: 4141 | K176: 5142 | L176: SERGIO BOVEA MARIN | M176: 2020-08-16 | N176: https://www.contratos.gov.co/consultas/detalleProceso.do?numConstancia=20-4-11020684
A177: 175 | B177: 32810582 | C177: JOSEFINA CARO VITOLA | D177: 3318-2020 | E177: AUXILIAR DE ENFERMERIA URGENCIAS | F177: 03 de agosto de 2020 | G177: 31 de Agosto de 2020 | H177: 1653600 | I177: 1653600 | J177: 4142 | K177: 5143 | L177: SERGIO BOVEA MARIN | M177: 2020-08-16 | N177: https://www.contratos.gov.co/consultas/detalleProceso.do?numConstancia=20-4-11020686
A178: 176 | B178: 32771594 | C178: JUANA DIAZ CARABALLO | D178: 3319-2020 | E178: AUXILIAR DE ENFERMERIA URGENCIAS | F178: 03 de agosto de 2020 | G178: 31 de Agosto de 2020 | H178: 1653600 | I178: 1653600 | J178: 4143 | K178: 5144 | L178: SERGIO BOVEA MARIN | M178: 2020-08-16 | N178: https://www.contratos.gov.co/consultas/detalleProceso.do?numConstancia=20-4-11020696
A179: 177 | B179: 1043841968 | C179: KAREN DAYANA FONSECA MUÑOZ | D179: 3320-2020 | E179: MEDICO DE URGENCIA | F179: 03 de agosto de 2020 | G179: 31 de Agosto de 2020 | H179: 3072000 | I179: 3072000 | J179: 4144 | K179: 5145 | L179: SERGIO BOVEA MARIN | M179: 2020-08-16 | N179: https://www.contratos.gov.co/consultas/detalleProceso.do?numConstancia=20-4-11020700
A180: 178 | B180: 55313269 | C180: KAREN MARTINEZ BRANGO | D180: 3321-2020 | E180: AUXILIAR DE ENFERMERIA URGENCIAS | F180: 03 de agosto de 2020 | G180: 31 de Agosto de 2020 | H180: 1653600 | I180: 1653600 | J180: 4145 | K180: 5146 | L180: SERGIO BOVEA MARIN | M180: 2020-08-16 | N180: https://www.contratos.gov.co/consultas/detalleProceso.do?numConstancia=20-4-11020707
A181: 179 | B181: 22534402 | C181: KATERINE RUA SUAREZ | D181: 3322-2020 | E181: AUXILIAR DE FACTURACIÓN URGENCIA | F181: 03 de agosto de 2020 | G181: 31 de Agosto de 2020 | H181: 1680000 | I181: 1680000 | J181: 4146 | K181: 5147 | L181: SANDRA SANMARTIN | M181: 2020-08-16 | N181: https://www.contratos.gov.co/consultas/detalleProceso.do?numConstancia=20-4-11020709
A182: 180 | B182: 1045697885 | C182: LAURA ALANDETE CASTRO | D182: 3323-2020 | E182: MEDICO DE URGENCIA | F182: 03 de agosto de 2020 | G182: 31 de Agosto de 2020 | H182: 3072000 | I182: 3072000 | J182: 4147 | K182: 5148 | L182: SERGIO BOVEA MARIN | M182: 2020-08-16 | N182: https://www.contratos.gov.co/consultas/detalleProceso.do?numConstancia=20-4-11020710
A183: 181 | B183: 1045712889 | C183: LEYDILLY ROJANO GOMEZ | D183: 3324-2020 | E183: ENFERMERA JEFE URGENCIAS | F183: 03 de agosto de 2020 | G183: 31 de Agosto de 2020 | H183: 2280000 | I183: 2280000 | J183: 4148 | K183: 5149 | L183: SERGIO BOVEA MARIN | M183: 2020-08-16 | N183: https://www.contratos.gov.co/consultas/detalleProceso.do?numConstancia=20-4-11020712
A184: 182 | B184: 1042426533 | C184: LIZ CATERINE ARROYO ROMERO | D184: 3325-2020 | E184: AUXILIAR DE FARMACIA | F184: 03 de agosto de 2020 | G184: 31 de Agosto de 2020 | H184: 1524000 | I184: 1524000 | J184: 4149 | K184: 5150 | L184: BETTY PERTUZ | M184: 2020-08-16 | N184: https://www.contratos.gov.co/consultas/detalleProceso.do?numConstancia=20-4-11020714
A185: 183 | B185: 8672260 | C185: LUIS MIGUEL REYES LANCE | D185: 3326-2020 | E185: ORIENTADOR | F185: 03 de agosto de 2020 | G185: 31 de Agosto de 2020 | H185: 1524000 | I185: 1524000 | J185: 4150 | K185: 5151 | L185: SERGIO BOVEA MARIN | M185: 2020-08-16 | N185: https://www.contratos.gov.co/consultas/detalleProceso.do?numConstancia=20-4-11020717
A186: 184 | B186: 32825666 | C186: LUZ STELLA RUIZ SUAREZ | D186: 3327-2020 | E186: AUXILIAR DE ENFERMERIA DE RUTA INTEGRAL MATERNO PERINATAL | F186: 03 de agosto de 2020 | G186: 31 de Agosto de 2020 | H186: 1399200 | I186: 1399200 | J186: 4151 | K186: 5152 | L186: SERGIO BOVEA MARIN | M186: 2020-08-16 | N186: https://www.contratos.gov.co/consultas/detalleProceso.do?numConstancia=20-4-11020720
A187: 185 | B187: 1140849940 | C187: MAICOL JOSE MOLINA SOTO | D187: 3328-2020 | E187: MEDICO DE URGENCIA | F187: 03 de agosto de 2020 | G187: 31 de Agosto de 2020 | H187: 3072000 | I187: 3072000 | J187: 4152 | K187: 5153 | L187: SERGIO BOVEA MARIN | M187: 2020-08-16 | N187: https://www.contratos.gov.co/consultas/detalleProceso.do?numConstancia=20-4-11020724
A188: 186 | B188: 22644933 | C188: MARGARITA PACHECO GUTIERREZ | D188: 3329-2020 | E188: HIGIENISTA ORAL | F188: 03 de agosto de 2020 | G188: 31 de Agosto de 2020 | H188: 2332000 | I188: 2332000 | J188: 4153 | K188: 5154 | L188: SERGIO BOVEA MARIN | M188: 2020-08-16 | N188: https://www.contratos.gov.co/consultas/detalleProceso.do?numConstancia=20-4-11020725
A189: 187 | B189: 1042450048 | C189: MARIA ALEJANDRA DE LA HOZ TOSCANO | D189: 3330-2020 | E189: MEDICO DE URGENCIA | F189: 03 de agosto de 2020 | G189: 31 de Agosto de 2020 | H189: 3072000 | I189: 3072000 | J189: 4154 | K189: 5155 | L189: SERGIO BOVEA MARIN | M189: 2020-08-16 | N189: https://www.contratos.gov.co/consultas/detalleProceso.do?numConstancia=20-4-11020728
A190: 188 | B190: 1004093696 | C190: MARIA ALTAMAR OROZCO | D190: 3331-2020 | E190: AUXILIAR DE ENFERMERIA URGENCIAS | F190: 03 de agosto de 2020 | G190: 31 de Agosto de 2020 | H190: 1653600 | I190: 1653600 | J190: 4155 | K190: 5156 | L190: SERGIO BOVEA MARIN | M190: 2020-08-16 | N190: https://www.contratos.gov.co/consultas/detalleProceso.do?numConstancia=20-4-11020730
A191: 189 | B191: 32789239 | C191: MARIA DEL CARMEN GUERRERO OJEDA | D191: 3332-2020 | E191: ORIENTADOR | F191: 03 de agosto de 2020 | G191: 31 de Agosto de 2020 | H191: 1524000 | I191: 1524000 | J191: 4156 | K191: 5157 | L191: SERGIO BOVEA MARIN | M191: 2020-08-16 | N191: https://www.contratos.gov.co/consultas/detalleProceso.do?numConstancia=20-4-11020732
A192: 190 | B192: 1129572439 | C192: SHIRLEY CONSUEGRA OLAYA | D192: 3333-2020 | E192: REFERENCIA Y CONTRAREFERENCIA | F192: 03 de agosto de 2020 | G192: 31 de Agosto de 2020 | H192: 1524000 | I192: 1524000 | J192: 4157 | K192: 5158 | L192: SERGIO BOVEA MARIN | M192: 2020-08-16 | N192: https://www.contratos.gov.co/consultas/detalleProceso.do?numConstancia=20-4-11020733
A193: 191 | B193: 32879250 | C193: MARIA SEGURA MEJIA | D193: 3334-2020 | E193: AUXILIAR DE FACTURACIÓN URGENCIA | F193: 03 de agosto de 2020 | G193: 31 de Agosto de 2020 | H193: 1680000 | I193: 1680000 | J193: 4158 | K193: 5159 | L193: SANDRA SANMARTIN | M193: 2020-08-16 | N193: https://www.contratos.gov.co/consultas/detalleProceso.do?numConstancia=20-4-11020734
A194: 192 | B194: 72158729 | C194: MARLON CAMILO JORDAN HERRERA | D194: 3335-2020 | E194: REFERENCIA Y CONTRAREFERENCIA | F194: 03 de agosto de 2020 | G194: 31 de Agosto de 2020 | H194: 1776000 | I194: 1776000 | J194: 4159 | K194: 5160 | L194: SERGIO BOVEA MARIN | M194: 2020-08-16 | N194: https://www.contratos.gov.co/consultas/detalleProceso.do?numConstancia=20-4-11020738
A195: 193 | B195: 22457575 | C195: MELBA MEZA PERDOMO | D195: 3336-2020 | E195: TRABAJADORA SOCIAL | F195: 03 de agosto de 2020 | G195: 31 de Agosto de 2020 | H195: 2200000 | I195: 2200000 | J195: 4160 | K195: 5161 | L195: SERGIO BOVEA MARIN | M195: 2020-08-16 | N195: https://www.contratos.gov.co/consultas/detalleProceso.do?numConstancia=20-4-11020740
A196: 194 | B196: 8507626 | C196: MIGUEL ALVAREZ SALCEDO | D196: 3337-2020 | E196: CONDUCTOR DE AMBULANCIA | F196: 03 de agosto de 2020 | G196: 31 de Agosto de 2020 | H196: 2160000 | I196: 2160000 | J196: 4161 | K196: 5162 | L196: BETTY PERTUZ | M196: 2020-08-16 | N196: https://www.contratos.gov.co/consultas/detalleProceso.do?numConstancia=20-4-11020741
A197: =+A196+1 -> 195 | B197: 32829349 | C197: NADIA BOVEA NIETO | D197: 3338-2020 | E197: AUXILIAR DE ENFERMERIA URGENCIAS | F197: 03 de agosto de 2020 | G197: 31 de Agosto de 2020 | H197: 1653600 | I197: 1653600 | J197: 4162 | K197: 5163 | L197: SERGIO BOVEA MARIN | M197: 2020-08-16 | N197: https://www.contratos.gov.co/consultas/detalleProceso.do?numConstancia=20-4-11020744
A198: 196 | B198: 55307414 | C198: NATALY DE LAS SALAS ORTEGA | D198: 3339-2020 | E198: PSICOLOGA | F198: 03 de agosto de 2020 | G198: 31 de Agosto de 2020 | H198: 3000000 | I198: 3000000 | J198: 4163 | K198: 5164 | L198: BETTY PERTUZ | M198: 2020-08-16 | N198: https://www.contratos.gov.co/consultas/detalleProceso.do?numConstancia=20-4-11020746
A199: 197 | B199: 32783935 | C199: NELBY CORRALES HOYOS | D199: 3340-2020 | E199: AUXILIAR DE ENFERMERIA URGENCIAS | F199: 03 de agosto de 2020 | G199: 31 de Agosto de 2020 | H199: 1653600 | I199: 1653600 | J199: 4164 | K199: 5165 | L199: SERGIO BOVEA MARIN | M199: 2020-08-16 | N199: https://www.contratos.gov.co/consultas/detalleProceso.do?numConstancia=20-4-11020747
A200: 198 | B200: 32819548 | C200: NELLY GALAN HEILBRON | D200: 3341-2020 | E200: AUXILIAR DE ENFERMERIA PROMOTORA EN SALUD | F200: 03 de agosto de 2020 | G200: 31 de Agosto de 2020 | H200: 1215000 | I200: 1215000 | J200: 4165 | K200: 5166 | L200: SERGIO BOVEA MARIN | M200: 2020-08-16 | N200: https://www.contratos.gov.co/consultas/detalleProceso.do?numConstancia=20-4-11020749
... 276 more rows

Sheet PIC AGOSTO
A1: No | B1: CEDULA | C1: NOMBRE Y APELLIDO | D1: OPS | E1: año | F1: #OPS AÑO | G1: OBJETO DEL CONTRATO | H1: FECHA INICIO | I1: FECHA TERMINACION | J1: VALOR MENSUAL | K1: VALOR TOTAL | L1: SUPERVISOR | M1: CARGO | N1: RUBRO PRESUPUESTAL | O1: CDP | P1: RP | Q1: FECHA SECOP | R1: LINK SECOP
A2: 1 | B2: 22668428 | C2: ANABELL VELASQUEZ FERNANDEZ | D2: 249 | E2: 2020 -PIC | F2: =CONCATENATE(D2,"-",E2) -> 249-2020 -PIC | G2: COORDINADORA PIC | H2: 03 de Agosto de 2020 | I2: 31 de Agosto de 2020 | J2: 5800000 | K2: =J2*1 -> 5800000 | L2: BETTY PERTUZ | M2: SUBGERENTE CIENTIFICO | N2: PIC | O2: 3925 | P2: 4926 | Q2: 2020-08-23 | R2: https://www.contratos.gov.co/consultas/detalleProceso.do?numConstancia=20-4-11040447
A3: =+A2+1 -> 2 | B3: 32874188 | C3: JALICSSA ARRIETA ORTEGA | D3: =+D2+1 -> 250 | E3: 2020 -PIC | F3: 250-2020 -PIC | G3: APOYO GESTION PIC | H3: 03 de Agosto de 2020 | I3: 31 de Agosto de 2020 | J3: 3500000 | K3: 3500000 | L3: ANABELL VELASQUEZ | M3: COORDINADORA PIC | N3: PIC | O3: 3926 | P3: 4927 | Q3: 2020-08-23 | R3: https://www.contratos.gov.co/consultas/detalleProceso.do?numConstancia=20-4-11040452
A4: =+A3+1 -> 3 | B4: 32744712 | C4: CARMEN MARIA CORONADO ESCORCIA | D4: 251 | E4: 2020 -PIC | F4: 251-2020 -PIC | G4: ENFERMERA JEFE -PIC | H4: 03 de Agosto de 2020 | I4: 31 de Agosto de 2020 | J4: 2500000 | K4: 2500000 | L4: ANABELL VELASQUEZ | M4: COORDINADORA PIC | N4: PIC | O4: 3927 | P4: 4928 | Q4: 2020-08-23 | R4: https://www.contratos.gov.co/consultas/detalleProceso.do?numConstancia=20-4-11040457
A5: 4 | B5: 22506781 | C5: MILDRED TATIANA GOENAGA ALVARADO | D5: 252 | E5: 2020 -PIC | F5: 252-2020 -PIC | G5: ENFERMERA JEFE VACUNACION | H5: 03 de Agosto de 2020 | I5: 31 de Agosto de 2020 | J5: 2500000 | K5: 2500000 | L5: ANABELL VELASQUEZ | M5: COORDINADORA PIC | N5: PIC | O5: 3928 | P5: 4929 | Q5: 2020-08-23 | R5: https://www.contratos.gov.co/consultas/detalleProceso.do?numConstancia=20-4-11040458
A6: 5 | B6: 22645320 | C6: ADRIANA CRISTINA GARCIA CARRILLO | D6: 253 | E6: 2020 -PIC | F6: 253-2020 -PIC | G6: FISIOTERAPEUTA | H6: 03 de Agosto de 2020 | I6: 31 de Agosto de 2020 | J6: 2500000 | K6: 2500000 | L6: ANABELL VELASQUEZ | M6: COORDINADORA PIC | N6: PIC | O6: 3929 | P6: 4930 | Q6: 2020-08-23 | R6: https://www.contratos.gov.co/consultas/detalleProceso.do?numConstancia=20-4-11040459
A7: 6 | B7: 32777087 | C7: ROSA MARGARITA SEVILLA | D7: 254 | E7: 2020 -PIC | F7: 254-2020 -PIC | G7: NUTRICIONISTA | H7: 03 de Agosto de 2020 | I7: 31 de Agosto de 2020 | J7: 2500000 | K7: 2500000 | L7: ANABELL VELASQUEZ | M7: COORDINADORA PIC | N7: PIC | O7: 3930 | P7: 4931 | Q7: 2020-08-23 | R7: https://www.contratos.gov.co/consultas/detalleProceso.do?numConstancia=20-4-11040462
A8: 7 | B8: 1065575009 | C8: ANDREA TATIANA SERRANO MOLINA | D8: 255 | E8: 2020 -PIC | F8: 255-2020 -PIC | G8: PSICOLOGO | H8: 03 de Agosto de 2020 | I8: 31 de Agosto de 2020 | J8: 2500000 | K8: 2500000 | L8: ANABELL VELASQUEZ | M8: COORDINADORA PIC | N8: PIC | O8: 3931 | P8: 4932 | Q8: 2020-08-23 | R8: https://www.contratos.gov.co/consultas/detalleProceso.do?numConstancia=20-4-11040464
A9: 8 | B9: 22617307 | C9: ETILVIA TERESA DONADO CABALLERO | D9: 256 | E9: 2020 -PIC | F9: 256-2020 -PIC | G9: PSICOLOGO | H9: 03 de Agosto de 2020 | I9: 31 de Agosto de 2020 | J9: 2500000 | K9: 2500000 | L9: ANABELL VELASQUEZ | M9: COORDINADORA PIC | N9: PIC | O9: 3932 | P9: 4933 | Q9: 2020-08-23 | R9: https://www.contratos.gov.co/consultas/detalleProceso.do?numConstancia=20-4-11040467
A10: 9 | B10: 1140873504 | C10: OLMAN JOSHUA BULA TORRES | D10: 257 | E10: 2020 -PIC | F10: 257-2020 -PIC | G10: PSICOLOGO | H10: 03 de Agosto de 2020 | I10: 31 de Agosto de 2020 | J10: 2500000 | K10: 2500000 | L10: ANABELL VELASQUEZ | M10: COORDINADORA PIC | N10: PIC | O10: 3933 | P10: 4934 | Q10: 2020-08-23 | R10: https://www.contratos.gov.co/consultas/detalleProceso.do?numConstancia=20-4-11040468
A11: 10 | B11: 1046872703 | C11: LUCELIS DE LA HOZ ESCORCIA | D11: 258 | E11: 2020 -PIC | F11: 258-2020 -PIC | G11: AUXILIAR ADMINISTRATIVO-PIC | H11: 03 de Agosto de 2020 | I11: 31 de Agosto de 2020 | J11: 1900000 | K11: 1900000 | L11: ANABELL VELASQUEZ | M11: COORDINADORA PIC | N11: PIC | O11: 3934 | P11: 4935 | Q11: 2020-08-23 | R11: https://www.contratos.gov.co/consultas/detalleProceso.do?numConstancia=20-4-11040471
A12: 11 | B12: 72271553 | C12: DAVID ENRIQUE AGRESOT DE LA CRUZ | D12: 259 | E12: 2020 -PIC | F12: 259-2020 -PIC | G12: LIDER DE ZOONOSIS | H12: 03 de Agosto de 2020 | I12: 31 de Agosto de 2020 | J12: 1900000 | K12: 1900000 | L12: ANABELL VELASQUEZ | M12: COORDINADORA PIC | N12: PIC | O12: 3935 | P12: 4936 | Q12: 2020-08-23 | R12: https://www.contratos.gov.co/consultas/detalleProceso.do?numConstancia=20-4-11040473
A13: 12 | B13: 1140814733 | C13: KATHERINE PATRICIA URUETA VERGARA | D13: 260 | E13: 2020 -PIC | F13: 260-2020 -PIC | G13: LIDER APS | H13: 03 de Agosto de 2020 | I13: 31 de Agosto de 2020 | J13: 2500000 | K13: 2500000 | L13: ANABELL VELASQUEZ | M13: COORDINADORA PIC | N13: PIC | O13: 3936 | P13: 4937 | Q13: 2020-08-23 | R13: https://www.contratos.gov.co/consultas/detalleProceso.do?numConstancia=20-4-11040475
A14: 13 | B14: 72304633 | C14: SAMUEL EDUARDO URUETA HURTADO | D14: 261 | E14: 2020 -PIC | F14: 261-2020 -PIC | G14: LIDER AMBIENTAL | H14: 03 de Agosto de 2020 | I14: 31 de Agosto de 2020 | J14: 2500000 | K14: 2500000 | L14: ANABELL VELASQUEZ | M14: COORDINADORA PIC | N14: PIC | O14: 3937 | P14: 4938 | Q14: 2020-08-23 | R14: https://www.contratos.gov.co/consultas/detalleProceso.do?numConstancia=20-4-11040480
A15: 14 | B15: 72429089 | C15: EDER DE JESUS SEGURA BRAVO | D15: 262 | E15: 2020-PIC | F15: 262-2020-PIC | G15: HIGIENISTA ORAL | H15: 03 de Agosto de 2020 | I15: 31 de Agosto de 2020 | J15: 1900000 | K15: 1900000 | L15: ANABELL VELASQUEZ | M15: COORDINADORA PIC | N15: PIC | O15: 3938 | P15: 4939 | Q15: 2020-08-23 | R15: https://www.contratos.gov.co/consultas/detalleProceso.do?numConstancia=20-4-11040482
A16: 15 | B16: 32876278 | C16: CLAUDIA MARTINEZ RIVAS | D16: 263 | E16: 2020 -PIC | F16: 263-2020 -PIC | G16: AGENTE PRIMARIA EN SALUD-APS | H16: 03 de Agosto de 2020 | I16: 31 de Agosto de 2020 | J16: 1400000 | K16: 1400000 | L16: ANABELL VELASQUEZ | M16: COORDINADORA PIC | N16: PIC | O16: 3939 | P16: 4940 | Q16: 2020-08-23 | R16: https://www.contratos.gov.co/consultas/detalleProceso.do?numConstancia=20-4-11040484
A17: 16 | B17: 1143136225 | C17: MARTA CECILIA MARIN ZAPATA | D17: 264 | E17: 2020 -PIC | F17: 264-2020 -PIC | G17: AGENTE PRIMARIA EN SALUD-APS | H17: 03 de Agosto de 2020 | I17: 31 de Agosto de 2020 | J17: 1400000 | K17: 1400000 | L17: ANABELL VELASQUEZ | M17: COORDINADORA PIC | N17: PIC | O17: 3940 | P17: 4941 | Q17: 2020-08-23 | R17: https://www.contratos.gov.co/consultas/detalleProceso.do?numConstancia=20-4-11040485
A18: 17 | B18: 1043931882 | C18: AREIDIS MEDINA SANJUAN | D18: 265 | E18: 2020 -PIC | F18: 265-2020 -PIC | G18: AGENTE PRIMARIA EN SALUD-APS | H18: 03 de Agosto de 2020 | I18: 31 de Agosto de 2020 | J18: 1400000 | K18: 1400000 | L18: ANABELL VELASQUEZ | M18: COORDINADORA PIC | N18: PIC | O18: 3941 | P18: 4942 | Q18: 2020-08-23 | R18: https://www.contratos.gov.co/consultas/detalleProceso.do?numConstancia=20-4-11040490
A19: 18 | B19: 22543666 | C19: DENNYS MARIELA ARZUZAR GALVIS | D19: 266 | E19: 2020 -PIC | F19: 266-2020 -PIC | G19: AGENTE PRIMARIA EN SALUD-APS | H19: 03 de Agosto de 2020 | I19: 31 de Agosto de 2020 | J19: 1400000 | K19: 1400000 | L19: ANABELL VELASQUEZ | M19: COORDINADORA PIC | N19: PIC | O19: 3942 | P19: 4943 | Q19: 2020-08-23 | R19: https://www.contratos.gov.co/consultas/detalleProceso.do?numConstancia=20-4-11040491
A20: 19 | B20: 44160070 | C20: GLORIA ZAPATA REZA | D20: 267 | E20: 2020 -PIC | F20: 267-2020 -PIC | G20: AGENTE PRIMARIA EN SALUD-APS | H20: 03 de Agosto de 2020 | I20: 31 de Agosto de 2020 | J20: 1400000 | K20: 1400000 | L20: ANABELL VELASQUEZ | M20: COORDINADORA PIC | N20: PIC | O20: 3943 | P20: 4944 | Q20: 2020-08-23 | R20: https://www.contratos.gov.co/consultas/detalleProceso.do?numConstancia=20-4-11040511
A21: 20 | B21: 44152281 | C21: KAREN JOHANA JIMENEZ RAMOS | D21: 268 | E21: 2020 -PIC | F21: 268-2020 -PIC | G21: AGENTE PRIMARIA EN SALUD-APS | H21: 03 de Agosto de 2020 | I21: 31 de Agosto de 2020 | J21: 1400000 | K21: 1400000 | L21: ANABELL VELASQUEZ | M21: COORDINADORA PIC | N21: PIC | O21: 3944 | P21: 4945 | Q21: 2020-08-23 | R21: https://www.contratos.gov.co/consultas/detalleProceso.do?numConstancia=20-4-11040516
A22: 21 | B22: 44150081 | C22: MARY LUZ GUERRERO CERVANTES | D22: 269 | E22: 2020 -PIC | F22: 269-2020 -PIC | G22: AGENTE PRIMARIA EN SALUD-APS | H22: 03 de Agosto de 2020 | I22: 31 de Agosto de 2020 | J22: 1400000 | K22: 1400000 | L22: ANABELL VELASQUEZ | M22: COORDINADORA PIC | N22: PIC | O22: 3945 | P22: 4946 | Q22: 2020-08-23 | R22: https://www.contratos.gov.co/consultas/detalleProceso.do?numConstancia=20-4-11040518
A23: 22 | B23: 1002162856 | C23: NICOLL PATRICIA NIEBLES RIVERA | D23: 270 | E23: 2020 -PIC | F23: 270-2020 -PIC | G23: AGENTE PRIMARIA EN SALUD-APS | H23: 03 de Agosto de 2020 | I23: 31 de Agosto de 2020 | J23: 1400000 | K23: 1400000 | L23: ANABELL VELASQUEZ | M23: COORDINADORA PIC | N23: PIC | O23: 3946 | P23: 4947 | Q23: 2020-08-23 | R23: https://www.contratos.gov.co/consultas/detalleProceso.do?numConstancia=20-4-11040525
A24: 23 | B24: 32758730 | C24: NUBIA ESTELA CANO GUILLEN | D24: 271 | E24: 2020 -PIC | F24: 271-2020 -PIC | G24: AGENTE PRIMARIA EN SALUD-APS | H24: 03 de Agosto de 2020 | I24: 31 de Agosto de 2020 | J24: 1400000 | K24: 1400000 | L24: ANABELL VELASQUEZ | M24: COORDINADORA PIC | N24: PIC | O24: 3947 | P24: 4948 | Q24: 2020-08-23 | R24: https://www.contratos.gov.co/consultas/detalleProceso.do?numConstancia=20-4-11040528
A25: 24 | B25: 1042449446 | C25: SAILIS MARIA FRIA VEGA | D25: 272 | E25: 2020 -PIC | F25: 272-2020 -PIC | G25: AGENTE PRIMARIA EN SALUD-APS | H25: 03 de Agosto de 2020 | I25: 31 de Agosto de 2020 | J25: 1400000 | K25: 1400000 | L25: ANABELL VELASQUEZ | M25: COORDINADORA PIC | N25: PIC | O25: 3948 | P25: 4949 | Q25: 2020-08-23 | R25: https://www.contratos.gov.co/consultas/detalleProceso.do?numConstancia=20-4-11040531
A26: 25 | B26: 1047337919 | C26: CANDY ISABEL ROJAS SARMIENTO | D26: 273 | E26: 2020 -PIC | F26: 273-2020 -PIC | G26: AGENTE PRIMARIA EN SALUD-ZOONOSIS | H26: 03 de Agosto de 2020 | I26: 31 de Agosto de 2020 | J26: 1400000 | K26: 1400000 | L26: ANABELL VELASQUEZ | M26: COORDINADORA PIC | N26: PIC | O26: 3949 | P26: 4950 | Q26: 2020-08-23 | R26: https://www.contratos.gov.co/consultas/detalleProceso.do?numConstancia=20-4-11040535
A27: 26 | B27: 8784783 | C27: DAIRO MANRIQUEZ MORALES BOVEA | D27: 274 | E27: 2020 -PIC | F27: 274-2020 -PIC | G27: AGENTE PRIMARIA EN SALUD-ZOONOSIS | H27: 03 de Agosto de 2020 | I27: 31 de Agosto de 2020 | J27: 1400000 | K27: 1400000 | L27: ANABELL VELASQUEZ | M27: COORDINADORA PIC | N27: PIC | O27: 3950 | P27: 4951 | Q27: 2020-08-23 | R27: https://www.contratos.gov.co/consultas/detalleProceso.do?numConstancia=20-4-11040537
A28: 27 | B28: 32829868 | C28: JUDITH ISABEL ARCON MEDINA | D28: 275 | E28: 2020 -PIC | F28: 275-2020 -PIC | G28: AGENTE PRIMARIA EN SALUD-ZOONOSIS | H28: 03 de Agosto de 2020 | I28: 31 de Agosto de 2020 | J28: 1400000 | K28: 1400000 | L28: ANABELL VELASQUEZ | M28: COORDINADORA PIC | N28: PIC | O28: 3951 | P28: 4952 | Q28: 2020-08-23 | R28: https://www.contratos.gov.co/consultas/detalleProceso.do?numConstancia=20-4-11040541
A29: 28 | B29: 1046698080 | C29: LUIS ALFREDO CANTILLO CABALLERO | D29: 276 | E29: 2020 -PIC | F29: 276-2020 -PIC | G29: AGENTE PRIMARIA EN SALUD-ZOONOSIS | H29: 03 de Agosto de 2020 | I29: 31 de Agosto de 2020 | J29: 1400000 | K29: 1400000 | L29: ANABELL VELASQUEZ | M29: COORDINADORA PIC | N29: PIC | O29: 3952 | P29: 4953 | Q29: 2020-08-23 | R29: https://www.contratos.gov.co/consultas/detalleProceso.do?numConstancia=20-4-11040543
A30: 29 | B30: 30895455 | C30: MARIA CONCEPCION ESPRIELLA BUELVAS | D30: 277 | E30: 2020 -PIC | F30: 277-2020 -PIC | G30: AGENTE PRIMARIA EN SALUD-ZOONOSIS | H30: 03 de Agosto de 2020 | I30: 31 de Agosto de 2020 | J30: 1400000 | K30: 1400000 | L30: ANABELL VELASQUEZ | M30: COORDINADORA PIC | N30: PIC | O30: 3953 | P30: 4954 | Q30: 2020-08-23 | R30: https://www.contratos.gov.co/consultas/detalleProceso.do?numConstancia=20-4-11040545
A31: 30 | B31: 1143442239 | C31: SAYURIS OCAMPO GARCIA | D31: 278 | E31: 2020 -PIC | F31: 278-2020 -PIC | G31: AGENTE PRIMARIA EN SALUD-ZOONOSIS | H31: 03 de Agosto de 2020 | I31: 31 de Agosto de 2020 | J31: 1400000 | K31: 1400000 | L31: ANABELL VELASQUEZ | M31: COORDINADORA PIC | N31: PIC | O31: 3954 | P31: 4955 | Q31: 2020-08-23 | R31: https://www.contratos.gov.co/consultas/detalleProceso.do?numConstancia=20-4-11040548
A32: 31 | B32: 32872420 | C32: LUZ MARINA GARIZAO TAPIA | D32: 279 | E32: 2020 -PIC | F32: 279-2020 -PIC | G32: AGENTE PRIMARIA EN SALUD-ZOONOSIS | H32: 03 de Agosto de 2020 | I32: 31 de Agosto de 2020 | J32: 1400000 | K32: 1400000 | L32: ANABELL VELASQUEZ | M32: COORDINADORA PIC | N32: PIC | O32: 3955 | P32: 4956 | Q32: 2020-08-23 | R32: https://www.contratos.gov.co/consultas/detalleProceso.do?numConstancia=20-4-11040550
A33: 32 | B33: 1042417608 | C33: KELLY DEL CARMEN PARDO RODRIGUEZ | D33: =+D32+1 -> 280 | E33: 2020 -PIC | F33: =CONCATENATE(D33,"-",E33) -> 280-2020 -PIC | G33: AUXILIAR DE ENFERMERIA - VACUNACION | H33: 03 de Agosto de 2020 | I33: 31 de Agosto de 2020 | J33: 1400000 | K33: =J33*1 -> 1400000 | L33: ANABELL VELASQUEZ | M33: COORDINADORA PIC | N33: PIC | O33: 3958 | P33: 4959 | Q33: 2020-08-23 | R33: https://www.contratos.gov.co/consultas/detalleProceso.do?numConstancia=20-4-11040551
A34: 33 | B34: 32870003 | C34: DALGIS ESTHER BADILLO FONTALVO | D34: =+D33+1 -> 281 | E34: 2020 -PIC | F34: 281-2020 -PIC | G34: AGENTE PRIMARIA EN SALUD-ZOONOSIS | H34: 03 de Agosto de 2020 | I34: 31 de Agosto de 2020 | J34: 1400000 | K34: 1400000 | L34: ANABELL VELASQUEZ | M34: COORDINADORA PIC | N34: PIC | O34: 3957 | P34: 4958 | Q34: 2020-08-23 | R34: https://www.contratos.gov.co/consultas/detalleProceso.do?numConstancia=20-4-11040553
A35: 34 | B35: 1129542324 | C35: VANESSA ESTHER TEVENIN VERGARA | D35: =+D34+1 -> 282 | E35: 2020-PIC | F35: 282-2020-PIC | G35: AUXILIAR DE ENFERMERIA - VACUNACION | H35: 03 de Agosto de 2020 | I35: 31 de Agosto de 2020 | J35: 1400000 | K35: 1400000 | L35: ANABELL VELASQUEZ | M35: COORDINADORA PIC | N35: PIC | O35: 3959 | P35: 4960 | Q35: 2020-08-23 | R35: https://www.contratos.gov.co/consultas/detalleProceso.do?numConstancia=20-4-11040554
A36: 35 | B36: 50846336 | C36: MIRIAM DEL SOCORRO FLOREZ ESPITIA | D36: =+D35+1 -> 283 | E36: 2020-PIC | F36: 283-2020-PIC | G36: AUXILIAR DE ENFERMERIA - VACUNACION | H36: 03 de Agosto de 2020 | I36: 31 de Agosto de 2020 | J36: 1400000 | K36: 1400000 | L36: ANABELL VELASQUEZ | M36: COORDINADORA PIC | N36: PIC | O36: 3960 | P36: 4961 | Q36: 2020-08-23 | R36: https://www.contratos.gov.co/consultas/detalleProceso.do?numConstancia=20-4-11040557
A37: 36 | B37: 32886799 | C37: NAIROVIS ESCOBAR VILLAFAÑE | D37: 284 | E37: 2020-PIC | F37: 284-2020-PIC | G37: AUXILIAR DE ENFERMERIA - VACUNACION | H37: 03 de Agosto de 2020 | I37: 31 de Agosto de 2020 | J37: 1400000 | K37: 1400000 | L37: ANABELL VELASQUEZ | M37: COORDINADORA PIC | N37: PIC | O37: 3961 | P37: 4962 | Q37: 2020-08-23 | R37: https://www.contratos.gov.co/consultas/detalleProceso.do?numConstancia=20-4-11040558
A38: 37 | B38: 22570955 | C38: FARLEY DEL CARMEN OSORIO REYES | D38: =+#REF!+1 ->  | E38: 2020-PIC | F38: 287-2020-PIC | G38: AUXILIAR DE ENFERMERIA - VACUNACION | H38: 03 de Agosto de 2020 | I38: 31 de Agosto de 2020 | J38: 1400000 | K38: 1400000 | L38: ANABELL VELASQUEZ | M38: COORDINADORA PIC | N38: PIC | O38: 3964 | P38: 4965 | Q38: 2020-08-23 | R38: https://www.contratos.gov.co/consultas/detalleProceso.do?numConstancia=20-4-11040562
A39: 38 | B39: 32697649 | C39: CELEDENIA DEL CARMEN DE MOYA GARCES | E39: 2020-PIC | F39: 288-2020-PIC | G39: AUXILIAR DE ENFERMERIA - VACUNACION | H39: 03 de Agosto de 2020 | I39: 31 de Agosto de 2020 | J39: 1400000 | K39: 1400000 | L39: ANABELL VELASQUEZ | M39: COORDINADORA PIC | N39: PIC | O39: 3965 | P39: 4966 | Q39: 2020-08-23 | R39: https://www.contratos.gov.co/consultas/detalleProceso.do?numConstancia=20-4-11040564
A40: 39 | B40: 55222617 | C40: OLGA REBECA SANDOVAL PEDRAZA | E40: 2020-PIC | F40: 289-2020-PIC | G40: AUXILIAR DE ENFERMERIA - VACUNACION | H40: 03 de Agosto de 2020 | I40: 31 de Agosto de 2020 | J40: 1400000 | K40: 1400000 | L40: ANABELL VELASQUEZ | M40: COORDINADORA PIC | N40: PIC | O40: 3966 | P40: 4967 | Q40: 2020-08-23 | R40: https://www.contratos.gov.co/consultas/detalleProceso.do?numConstancia=20-4-11040566
A41: 40 | B41: 55249422 | C41: YULIETH DEL CARMEN VILORIA CALDERA | E41: 2020-PIC | F41: 290-2020-PIC | G41: AUXILIAR DE ENFERMERIA - VACUNACION | H41: 03 de Agosto de 2020 | I41: 31 de Agosto de 2020 | J41: 1400000 | K41: 1400000 | L41: ANABELL VELASQUEZ | M41: COORDINADORA PIC | N41: PIC | O41: 3967 | P41: 4968 | Q41: 2020-08-23 | R41: https://www.contratos.gov.co/consultas/detalleProceso.do?numConstancia=20-4-11040568
A42: 41 | B42: 3779189 | C42: JAIME ENRIQUE MARQUEZ VILLAFAÑE | D42: =+D41+1 ->  | E42: 2020-PIC | F42: 291-2020-PIC | G42: AGENTE PRIMARIA EN SALUD-ZOONOSIS | H42: 03 de Agosto de 2020 | I42: 31 de Agosto de 2020 | J42: 1400000 | K42: =J42*1 -> 1400000 | L42: ANABELL VELASQUEZ | M42: COORDINADORA PIC | N42: PIC | O42: 3956 | P42: 4957 | Q42: 2020-08-23 | R42: https://www.contratos.gov.co/consultas/detalleProceso.do?numConstancia=20-4-11040570
A43: 42 | B43: 1.046.873.150 d | C43: NILBA SOFÍA BARRAZA JIMÉNEZ | F43: 292-2020-PIC | G43: TECNICO SALUD OCUPACIONAL PIC | H43: 03 de Agosto de 2020 | I43: 31 de Agosto de 2020 | J43: 1900000 | K43: =J43*1 -> 1900000 | L43: ANABELL VELASQUEZ | M43: COORDINADORA PIC | N43: PIC | O43: 4474 | P43: 5477 | Q43: 2020-08-23 | R43: https://www.contratos.gov.co/consultas/detalleProceso.do?numConstancia=20-4-11040570
